{"text_format":"1","workbook":"xlsx","n_sheets":2,"sheets":["Result","Variant"],"not_rendered":{"charts":0,"images":8,"macros":1,"external_links":0,"defined_names":0,"comments":0,"pivot_tables":0},"unopened":[],"bounds":{"document_bytes":16777216,"sheet_cells":100000,"rows_first":2000,"rows_last":500,"rows_between":2000,"halvings":0,"cell_chars":16384,"cell_head_chars":4096},"cells_cut":0,"cells_raw":0,"read":"whole","date_system":"1900"}

{"sheet":"Result","index":0,"n_rows":40,"n_cols":16384,"rows_kept":40,"cut":false,"hidden":false,"merged":[[3,5,5,9],[3,11,5,15],[14,1,15,3],[14,11,14,12],[15,11,15,12],[16,11,16,12],[9,1,10,3],[9,11,10,15],[13,11,13,12],[19,1,20,3],[19,5,19,6],[19,7,19,8],[19,11,19,12],[20,5,20,6],[20,7,20,8],[13,14,13,15],[14,14,14,15],[15,14,15,15],[16,14,16,15],[22,11,22,12],[20,14,20,15],[21,14,21,15],[22,14,22,15],[17,11,17,12],[18,11,18,12],[18,14,18,15],[19,14,19,15],[20,11,20,12],[21,11,21,12],[17,14,17,15],[37,18,38,24],[35,25,35,26],[38,1,38,16],[24,1,25,3],[29,1,30,3],[35,19,35,23]]}
[null,null,null,null,null,null,null,null,null,null,null,null,null,null,null,null,null,null,null,null,null,null,null,null,null,null,null,null,null,null,null,null,null,null,null,null,null,null,null,null,null,null,null,null,null,null,null,null,null,null,null,null,null,null,null,null,null,null,null,null,null,null,null,null,null,null,null,null,null,null,null,null,null,null,null,null,null,null,null,null,null,null,null,null,null,null,null,null,null,null,null,null,null,null,null,null,null,null,null,null,null,null,null,null,null,null,null,null,null,null,null,null,null,null,null,null,null,null,null,null,null,null,null,null,null,null,null,null,null,null,null,null,null,null,null,null,null,null,null,null,null,null,null,null,null,null,null,null,null,null,null,null,null,null,null,null,null,null,null,null,null,null,null,null,null,null,null,null,null,null,null,null,null,null,null,null,null,null,null,null,null,null,null,null,null,null,null,null,null,null,null,null,null,null,null,null,null,null,null,null,null,null,null,null,null,null,null,null,null,null,null,null,null,null,null,null,null,null,null,null,null,null,null,null,null,null,null,null,null,null,null,null,null,null,null,null,null,null,null,null,null,null,null,null,null,null,null,null,null,null,null,null,null,null,null,null,null,null,null,null,null,null,null,null,null,null,null,null,null,null,null,null,null,null,null,null,null,null,null,null,null,null,null,null,null,null,null,null,null,null,null,null,null,null,null,null,null,null,null,null,null,null,null,null,null,null,null,null,null,null,null,null,null,null,null,null,null,null,null,null,null,null,null,null,null,null,null,null,null,null,null,null,null,null,null,null,null,null,null,null,null,null,null,null,null,null,null,null,null,null,null,null,null,null,null,null,null,null,null,null,null,null,null,null,null,null,null,null,null,null,null,null,null,null,null,null,null,null,null,null,null,null,null,null,null,null,null,null,null,null,null,null,null,null,null,null,null,null,null,null,null,null,null,null,null,null,null,null,null,null,null,null,null,null,null,null,null,null,null,null,null,null,null,null,null,null,null,null,null,null,null,null,null,null,null,null,null,null,null,null,null,null,null,null,null,null,null,null,null,null,null,null,null,null,null,null,null,null,null,null,null,null,null,null,null,null,null,null,null,null,null,null,null,null,null,null,null,null,null,null,null,null,null,null,null,null,null,null,null,null,null,null,null,null,null,null,null,null,null,null,null,null,null,null,null,null,null,null,null,null,null,null,null,null,null,null,null,null,null,null,null,null,null,null,null,null,null,null,null,null,null,null,null,null,null,null,null,null,null,null,null,null,null,null,null,null,null,null,null,null,null,null,null,null,null,null,null,null,null,null,null,null,null,null,null,null,null,null,null,null,null,null,null,null,null,null,null,null,null,null,null,null,null,null,null,null,null,null,null,null,null,null,null,null,null,null,null,null,null,null,null,null,null,null,null,null,null,null,null,null,null,null,null,null,null,null,null,null,null,null,null,null,null,null,null,null,null,null,null,null,null,null,null,null,null,null,null,null,null,null,null,null,null,null,null,null,null,null,null,null,null,null,null,null,null,null,null,null,null,null,null,null,null,null,null,null,null,null,null,null,null,null,null,null,null,null,null,null,null,null,null,null,null,null,null,null,null,null,null,null,null,null,null,null,null,null,null,null,null,null,null,null,null,null,null,null,null,null,null,null,null,null,null,null,null,null,null,null,null,null,null,null,null,null,null,null,null,null,null,null,null,null,null,null,null,null,null,null,null,null,null,null,null,null,null,null,null,null,null,null,null,null,null,null,null,null,null,null,null,null,null,null,null,null,null,null,null,null,null,null,null,null,null,null,null,null,null,null,null,null,null,null,null,null,null,null,null,null,null,null,null,null,null,null,null,null,null,null,null,null,null,null,null,null,null,null,null,null,null,null,null,null,null,null,null,null,null,null,null,null,null,null,null,null,null,null,null,null,null,null,null,null,null,null,null,null,null,null,null,null,null,null,null,null,null,null,null,null,null,null,null,null,null,null,null,null,null,null,null,null,null,null,null,null,null,null,null,null,null,null,null,null,null,null,null,null,null,null,null,null,null,null,null,null,null,null,null,null,null,null,null,null,null,null,null,null,null,null,null,null,null,null,null,null,null,null,null,null,null,null,null,null,null,null,null,null,null,null,null,null,null,null,null,null,null,null,null,null,null,null,null,null,null,null,null,null,null,null,null,null,null,null,null,null,null,null,null,null,null,null,null,null,null,null,null,null,null,null,null,null,null,null,null,null,null,null,null,null,null,null,null,null,null,null,null,null,null,null,null,null,null,null,null,null,null,null,null,null,null,null,null,null,null,null,null,null,null,null,null,null,null,null,null,null,null,null,null,null,null,null,null,null,null,null,null,null,null,null,null,null,null,null,null,null,null,null,null,null,null,null,null,null,null,null,null,null,null,null,null,null,null,null,null,null,null,null,null,null,null,null,null,null,null,null,null,null,null,null,null,null,null,null,null,null,null,null,null,null,null,null,null,null,null,null,null,null,null,null,null,null,null,null,null,null,null,null,null,null,null,null,null,null,null,null,null,null,null,null,null,null,null,null,null,null,null,null,null,null,null,null,null,null,null,null,null,null,null,null,null,null,null,null,null,null,null,null,null,null,null,null,null,null,null,null,null,null,null,null,null,null,null,null,null,null,null,null,null,null,null,null,null,null,null,null,null,null,null,null,null,null,null,null,null,null,null,null,null,null,null,null,null,null,null,null,null,null,null,null,null,null,null,null,null,null,null,null,null,null,null,null,null,null,null,null,null,null,null,null,null,null,null,null,null,null,null,null,null,null,null,null,null,null,null,null,null,null,null,null,null,null,null,null,null,null,null,null,null,null,null,null,null,null,null,null,null,null,null,null,null,null,null,null,null,null,null,null,null,null,null,null,null,null,null,null,null,null,null,null,null,null,null,null,null,null,null,null,null,null,null,null,null,null,null,null,null,null,null,null,null,null,null,null,null,null,null,null,null,null,null,null,null,null,null,null,null,null,null,null,null,null,null,null,null,null,null,null,null,null,null,null,null,null,null,null,null,null,null,null,null,null,null,null,null,null,null,null,null,null,null,null,null,null,null,null,null,null,null,null,null,null,null,null,null,null,null,null,null,null,null,null,null,null,null,null,null,null,null,null,null,null,null,null,null,null,null,null,null,null,null,null,null,null,null,null,null,null,null,null,null,null,null,null,null,null,null,null,null,null,null,null,null,null,null,null,null,null,null,null,null,null,null,null,null,null,null,null,null,null,null,null,null,null,null,null,null,null,null,null,null,null,null,null,null,null,null,null,null,null,null,null,null,null,null,null,null,null,null,null,null,null,null,null,null,null,null,null,null,null,null,null,null,null,null,null,null,null,null,null,null,null,null,null,null,null,null,null,null,null,null,null,null,null,null,null,null,null,null,null,null,null,null,null,null,null,null,null,null,null,null,null,null,null,null,null,null,null,null,null,null,null,null,null,null,null,null,null,null,null,null,null,null,null,null,null,null,null,null,null,null,null,null,null,null,null,null,null,null,null,null,null,null,null,null,null,null,null,null,null,null,null,null,null,null,null,null,null,null,null,null,null,null,null,null,null,null,null,null,null,null,null,null,null,null,null,null,null,null,null,null,null,null,null,null,null,null,null,null,null,null,null,null,null,null,null,null,null,null,null,null,null,null,null,null,null,null,null,null,null,null,null,null,null,null,null,null,null,null,null,null,null,null,null,null,null,null,null,null,null,null,null,null,null,null,null,null,null,null,null,null,null,null,null,null,null,null,null,null,null,null,null,null,null,null,null,null,null,null,null,null,null,null,null,null,null,null,null,null,null,null,null,null,null,null,null,null,null,null,null,null,null,null,null,null,null,null,null,null,null,null,null,null,null,null,null,null,null,null,null,null,null,null,null,null,null,null,null,null,null,null,null,null,null,null,null,null,null,null,null,null,null,null,null,null,null,null,null,null,null,null,null,null,null,null,null,null,null,null,null,null,null,null,null,null,null,null,null,null,null,null,null,null,null,null,null,null,null,null,null,null,null,null,null,null,null,null,null,null,null,null,null,null,null,null,null,null,null,null,null,null,null,null,null,null,null,null,null,null,null,null,null,null,null,null,null,null,null,null,null,null,null,null,null,null,null,null,null,null,null,null,null,null,null,null,null,null,null,null,null,null,null,null,null,null,null,null,null,null,null,null,null,null,null,null,null,null,null,null,null,null,null,null,null,null,null,null,null,null,null,null,null,null,null,null,null,null,null,null,null,null,null,null,null,null,null,null,null,null,null,null,null,null,null,null,null,null,null,null,null,null,null,null,null,null,null,null,null,null,null,null,null,null,null,null,null,null,null,null,null,null,null,null,null,null,null,null,null,null,null,null,null,null,null,null,null,null,null,null,null,null,null,null,null,null,null,null,null,null,null,null,null,null,null,null,null,null,null,null,null,null,null,null,null,null,null,null,null,null,null,null,null,null,null,null,null,null,null,null,null,null,null,null,null,null,null,null,null,null,null,null,null,null,null,null,null,null,null,null,null,null,null,null,null,null,null,null,null,null,null,null,null,null,null,null,null,null,null,null,null,null,null,null,null,null,null,null,null,null,null,null,null,null,null,null,null,null,null,null,null,null,null,null,null,null,null,null,null,null,null,null,null,null,null,null,null,null,null,null,null,null,null,null,null,null,null,null,null,null,null,null,null,null,null,null,null,null,null,null,null,null,null,null,null,null,null,null,null,null,null,null,null,null,null,null,null,null,null,null,null,null,null,null,null,null,null,null,null,null,null,null,null,null,null,null,null,null,null,null,null,null,null,null,null,null,null,null,null,null,null,null,null,null,null,null,null,null,null,null,null,null,null,null,null,null,null,null,null,null,null,null,null,null,null,null,null,null,null,null,null,null,null,null,null,null,null,null,null,null,null,null,null,null,null,null,null,null,null,null,null,null,null,null,null,null,null,null,null,null,null,null,null,null,null,null,null,null,null,null,null,null,null,null,null,null,null,null,null,null,null,null,null,null,null,null,null,null,null,null,null,null,null,null,null,null,null,null,null,null,null,null,null,null,null,null,null,null,null,null,null,null,null,null,null,null,null,null,null,null,null,null,null,null,null,null,null,null,null,null,null,null,null,null,null,null,null,null,null,null,null,null,null,null,null,null,null,null,null,null,null,null,null,null,null,null,null,null,null,null,null,null,null,null,null,null,null,null,null,null,null,null,null,null,null,null,null,null,null,null,null,null,null,null,null,null,null,null,null,null,null,null,null,null,null,null,null,null,null,null,null,null,null,null,null,null,null,null,null,null,null,null,null,null,null,null,null,null,null,null,null,null,null,null,null,null,null,null,null,null,null,null,null,null,null,null,null,null,null,null,null,null,null,null,null,null,null,null,null,null,null,null,null,null,null,null,null,null,null,null,null,null,null,null,null,null,null,null,null,null,null,null,null,null,null,null,null,null,null,null,null,null,null,null,null,null,null,null,null,null,null,null,null,null,null,null,null,null,null,null,null,null,null,null,null,null,null,null,null,null,null,null,null,null,null,null,null,null,null,null,null,null,null,null,null,null,null,null,null,null,null,null,null,null,null,null,null,null,null,null,null,null,null,null,null,null,null,null,null,null,null,null,null,null,null,null,null,null,null,null,null,null,null,null,null,null,null,null,null,null,null,null,null,null,null,null,null,null,null,null,null,null,null,null,null,null,null,null,null,null,null,null,null,null,null,null,null,null,null,null,null,null,null,null,null,null,null,null,null,null,null,null,null,null,null,null,null,null,null,null,null,null,null,null,null,null,null,null,null,null,null,null,null,null,null,null,null,null,null,null,null,null,null,null,null,null,null,null,null,null,null,null,null,null,null,null,null,null,null,null,null,null,null,null,null,null,null,null,null,null,null,null,null,null,null,null,null,null,null,null,null,null,null,null,null,null,null,null,null,null,null,null,null,null,null,null,null,null,null,null,null,null,null,null,null,null,null,null,null,null,null,null,null,null,null,null,null,null,null,null,null,null,null,null,null,null,null,null,null,null,null,null,null,null,null,null,null,null,null,null,null,null,null,null,null,null,null,null,null,null,null,null,null,null,null,null,null,null,null,null,null,null,null,null,null,null,null,null,null,null,null,null,null,null,null,null,null,null,null,null,null,null,null,null,null,null,null,null,null,null,null,null,null,null,null,null,null,null,null,null,null,null,null,null,null,null,null,null,null,null,null,null,null,null,null,null,null,null,null,null,null,null,null,null,null,null,null,null,null,null,null,null,null,null,null,null,null,null,null,null,null,null,null,null,null,null,null,null,null,null,null,null,null,null,null,null,null,null,null,null,null,null,null,null,null,null,null,null,null,null,null,null,null,null,null,null,null,null,null,null,null,null,null,null,null,null,null,null,null,null,null,null,null,null,null,null,null,null,null,null,null,null,null,null,null,null,null,null,null,null,null,null,null,null,null,null,null,null,null,null,null,null,null,null,null,null,null,null,null,null,null,null,null,null,null,null,null,null,null,null,null,null,null,null,null,null,null,null,null,null,null,null,null,null,null,null,null,null,null,null,null,null,null,null,null,null,null,null,null,null,null,null,null,null,null,null,null,null,null,null,null,null,null,null,null,null,null,null,null,null,null,null,null,null,null,null,null,null,null,null,null,null,null,null,null,null,null,null,null,null,null,null,null,null,null,null,null,null,null,null,null,null,null,null,null,null,null,null,null,null,null,null,null,null,null,null,null,null,null,null,null,null,null,null,null,null,null,null,null,null,null,null,null,null,null,null,null,null,null,null,null,null,null,null,null,null,null,null,null,null,null,null,null,null,null,null,null,null,null,null,null,null,null,null,null,null,null,null,null,null,null,null,null,null,null,null,null,null,null,null,null,null,null,null,null,null,null,null,null,null,null,null,null,null,null,null,null,null,null,null,null,null,null,null,null,null,null,null,null,null,null,null,null,null,null,null,null,null,null,null,null,null,null,null,null,null,null,null,null,null,null,null,null,null,null,null,null,null,null,null,null,null,null,null,null,null,null,null,null,null,null,null,null,null,null,null,null,null,null,null,null,null,null,null,null,null,null,null,null,null,null,null,null,null,null,null,null,null,null,null,null,null,null,null,null,null,null,null,null,null,null,null,null,null,null,null,null,null,null,null,null,null,null,null,null,null,null,null,null,null,null,null,null,null,null,null,null,null,null,null,null,null,null,null,null,null,null,null,null,null,null,null,null,null,null,null,null,null,null,null,null,null,null,null,null,null,null,null,null,null,null,null,null,null,null,null,null,null,null,null,null,null,null,null,null,null,null,null,null,null,null,null,null,null,null,null,null,null,null,null,null,null,null,null,null,null,null,null,null,null,null,null,null,null,null,null,null,null,null,null,null,null,null,null,null,null,null,null,null,null,null,null,null,null,null,null,null,null,null,null,null,null,null,null,null,null,null,null,null,null,null,null,null,null,null,null,null,null,null,null,null,null,null,null,null,null,null,null,null,null,null,null,null,null,null,null,null,null,null,null,null,null,null,null,null,null,null,null,null,null,null,null,null,null,null,null,null,null,null,null,null,null,null,null,null,null,null,null,null,null,null,null,null,null,null,null,null,null,null,null,null,null,null,null,null,null,null,null,null,null,null,null,null,null,null,null,null,null,null,null,null,null,null,null,null,null,null,null,null,null,null,null,null,null,null,null,null,null,null,null,null,null,null,null,null,null,null,null,null,null,null,null,null,null,null,null,null,null,null,null,null,null,null,null,null,null,null,null,null,null,null,null,null,null,null,null,null,null,null,null,null,null,null,null,null,null,null,null,null,null,null,null,null,null,null,null,null,null,null,null,null,null,null,null,null,null,null,null,null,null,null,null,null,null,null,null,null,null,null,null,null,null,null,null,null,null,null,null,null,null,null,null,null,null,null,null,null,null,null,null,null,null,null,null,null,null,null,null,null,null,null,null,null,null,null,null,null,null,null,null,null,null,null,null,null,null,null,null,null,null,null,null,null,null,null,null,null,null,null,null,null,null,null,null,null,null,null,null,null,null,null,null,null,null,null,null,null,null,null,null,null,null,null,null,null,null,null,null,null,null,null,null,null,null,null,null,null,null,null,null,null,null,null,null,null,null,null,null,null,null,null,null,null,null,null,null,null,null,null,null,null,null,null,null,null,null,null,null,null,null,null,null,null,null,null,null,null,null,null,null,null,null,null,null,null,null,null,null,null,null,null,null,null,null,null,null,null,null,null,null,null,null,null,null,null,null,null,null,null,null,null,null,null,null,null,null,null,null,null,null,null,null,null,null,null,null,null,null,null,null,null,null,null,null,null,null,null,null,null,null,null,null,null,null,null,null,null,null,null,null,null,null,null,null,null,null,null,null,null,null,null,null,null,null,null,null,null,null,null,null,null,null,null,null,null,null,null,null,null,null,null,null,null,null,null,null,null,null,null,null,null,null,null,null,null,null,null,null,null,null,null,null,null,null,null,null,null,null,null,null,null,null,null,null,null,null,null,null,null,null,null,null,null,null,null,null,null,null,null,null,null,null,null,null,null,null,null,null,null,null,null,null,null,null,null,null,null,null,null,null,null,null,null,null,null,null,null,null,null,null,null,null,null,null,null,null,null,null,null,null,null,null,null,null,null,null,null,null,null,null,null,null,null,null,null,null,null,null,null,null,null,null,null,null,null,null,null,null,null,null,null,null,null,null,null,null,null,null,null,null,null,null,null,null,null,null,null,null,null,null,null,null,null,null,null,null,null,null,null,null,null,null,null,null,null,null,null,null,null,null,null,null,null,null,null,null,null,null,null,null,null,null,null,null,null,null,null,null,null,null,null,null,null,null,null,null,null,null,null,null,null,null,null,null,null,null,null,null,null,null,null,null,null,null,null,null,null,null,null,null,null,null,null,null,null,null,null,null,null,null,null,null,null,null,null,null,null,null,null,null,null,null,null,null,null,null,null,null,null,null,null,null,null,null,null,null,null,null,null,null,null,null,null,null,null,null,null,null,null,null,null,null,null,null,null,null,null,null,null,null,null,null,null,null,null,null,null,null,null,null,null,null,null,null,null,null,null,null,null,null,null,null,null,null,null,null,null,null,null,null,null,null,null,null,null,null,null,null,null,null,null,null,null,null,null,null,null,null,null,null,null,null,null,null,null,null,null,null,null,null,null,null,null,null,null,null,null,null,null,null,null,null,null,null,null,null,null,null,null,null,null,null,null,null,null,null,null,null,null,null,null,null,null,null,null,null,null,null,null,null,null,null,null,null,null,null,null,null,null,null,null,null,null,null,null,null,null,null,null,null,null,null,null,null,null,null,null,null,null,null,null,null,null,null,null,null,null,null,null,null,null,null,null,null,null,null,null,null,null,null,null,null,null,null,null,null,null,null,null,null,null,null,null,null,null,null,null,null,null,null,null,null,null,null,null,null,null,null,null,null,null,null,null,null,null,null,null,null,null,null,null,null,null,null,null,null,null,null,null,null,null,null,null,null,null,null,null,null,null,null,null,null,null,null,null,null,null,null,null,null,null,null,null,null,null,null,null,null,null,null,null,null,null,null,null,null,null,null,null,null,null,null,null,null,null,null,null,null,null,null,null,null,null,null,null,null,null,null,null,null,null,null,null,null,null,null,null,null,null,null,null,null,null,null,null,null,null,null,null,null,null,null,null,null,null,null,null,null,null,null,null,null,null,null,null,null,null,null,null,null,null,null,null,null,null,null,null,null,null,null,null,null,null,null,null,null,null,null,null,null,null,null,null,null,null,null,null,null,null,null,null,null,null,null,null,null,null,null,null,null,null,null,null,null,null,null,null,null,null,null,null,null,null,null,null,null,null,null,null,null,null,null,null,null,null,null,null,null,null,null,null,null,null,null,null,null,null,null,null,null,null,null,null,null,null,null,null,null,null,null,null,null,null,null,null,null,null,null,null,null,null,null,null,null,null,null,null,null,null,null,null,null,null,null,null,null,null,null,null,null,null,null,null,null,null,null,null,null,null,null,null,null,null,null,null,null,null,null,null,null,null,null,null,null,null,null,null,null,null,null,null,null,null,null,null,null,null,null,null,null,null,null,null,null,null,null,null,null,null,null,null,null,null,null,null,null,null,null,null,null,null,null,null,null,null,null,null,null,null,null,null,null,null,null,null,null,null,null,null,null,null,null,null,null,null,null,null,null,null,null,null,null,null,null,null,null,null,null,null,null,null,null,null,null,null,null,null,null,null,null,null,null,null,null,null,null,null,null,null,null,null,null,null,null,null,null,null,null,null,null,null,null,null,null,null,null,null,null,null,null,null,null,null,null,null,null,null,null,null,null,null,null,null,null,null,null,null,null,null,null,null,null,null,null,null,null,null,null,null,null,null,null,null,null,null,null,null,null,null,null,null,null,null,null,null,null,null,null,null,null,null,null,null,null,null,null,null,null,null,null,null,null,null,null,null,null,null,null,null,null,null,null,null,null,null,null,null,null,null,null,null,null,null,null,null,null,null,null,null,null,null,null,null,null,null,null,null,null,null,null,null,null,null,null,null,null,null,null,null,null,null,null,null,null,null,null,null,null,null,null,null,null,null,null,null,null,null,null,null,null,null,null,null,null,null,null,null,null,null,null,null,null,null,null,null,null,null,null,null,null,null,null,null,null,null,null,null,null,null,null,null,null,null,null,null,null,null,null,null,null,null,null,null,null,null,null,null,null,null,null,null,null,null,null,null,null,null,null,null,null,null,null,null,null,null,null,null,null,null,null,null,null,null,null,null,null,null,null,null,null,null,null,null,null,null,null,null,null,null,null,null,null,null,null,null,null,null,null,null,null,null,null,null,null,null,null,null,null,null,null,null,null,null,null,null,null,null,null,null,null,null,null,null,null,null,null,null,null,null,null,null,null,null,null,null,null,null,null,null,null,null,null,null,null,null,null,null,null,null,null,null,null,null,null,null,null,null,null,null,null,null,null,null,null,null,null,null,null,null,null,null,null,null,null,null,null,null,null,null,null,null,null,null,null,null,null,null,null,null,null,null,null,null,null,null,null,null,null,null,null,null,null,null,null,null,null,null,null,null,null,null,null,null,null,null,null,null,null,null,null,null,null,null,null,null,null,null,null,null,null,null,null,null,null,null,null,null,null,null,null,null,null,null,null,null,null,null,null,null,null,null,null,null,null,null,null,null,null,null,null,null,null,null,null,null,null,null,null,null,null,null,null,null,null,null,null,null,null,null,null,null,null,null,null,null,null,null,null,null,null,null,null,null,null,null,null,null,null,null,null,null,null,null,null,null,null,null,null,null,null,null,null,null,null,null,null,null,null,null,null,null,null,null,null,null,null,null,null,null,null,null,null,null,null,null,null,null,null,null,null,null,null,null,null,null,null,null,null,null,null,null,null,null,null,null,null,null,null,null,null,null,null,null,null,null,null,null,null,null,null,null,null,null,null,null,null,null,null,null,null,null,null,null,null,null,null,null,null,null,null,null,null,null,null,null,null,null,null,null,null,null,null,null,null,null,null,null,null,null,null,null,null,null,null,null,null,null,null,null,null,null,null,null,null,null,null,null,null,null,null,null,null,null,null,null,null,null,null,null,null,null,null,null,null,null,null,null,null,null,null,null,null,null,null,null,null,null,null,null,null,null,null,null,null,null,null,null,null,null,null,null,null,null,null,null,null,null,null,null,null,null,null,null,null,null,null,null,null,null,null,null,null,null,null,null,null,null,null,null,null,null,null,null,null,null,null,null,null,null,null,null,null,null,null,null,null,null,null,null,null,null,null,null,null,null,null,null,null,null,null,null,null,null,null,null,null,null,null,null,null,null,null,null,null,null,null,null,null,null,null,null,null,null,null,null,null,null,null,null,null,null,null,null,null,null,null,null,null,null,null,null,null,null,null,null,null,null,null,null,null,null,null,null,null,null,null,null,null,null,null,null,null,null,null,null,null,null,null,null,null,null,null,null,null,null,null,null,null,null,null,null,null,null,null,null,null,null,null,null,null,null,null,null,null,null,null,null,null,null,null,null,null,null,null,null,null,null,null,null,null,null,null,null,null,null,null,null,null,null,null,null,null,null,null,null,null,null,null,null,null,null,null,null,null,null,null,null,null,null,null,null,null,null,null,null,null,null,null,null,null,null,null,null,null,null,null,null,null,null,null,null,null,null,null,null,null,null,null,null,null,null,null,null,null,null,null,null,null,null,null,null,null,null,null,null,null,null,null,null,null,null,null,null,null,null,null,null,null,null,null,null,null,null,null,null,null,null,null,null,null,null,null,null,null,null,null,null,null,null,null,null,null,null,null,null,null,null,null,null,null,null,null,null,null,null,null,null,null,null,null,null,null,null,null,null,null,null,null,null,null,null,null,null,null,null,null,null,null,null,null,null,null,null,null,null,null,null,null,null,null,null,null,null,null,null,null,null,null,null,null,null,null,null,null,null,null,null,null,null,null,null,null,null,null,null,null,null,null,null,null,null,null,null,null,null,null,null,null,null,null,null,null,null,null,null,null,null,null,null,null,null,null,null,null,null,null,null,null,null,null,null,null,null,null,null,null,null,null,null,null,null,null,null,null,null,null,null,null,null,null,null,null,null,null,null,null,null,null,null,null,null,null,null,null,null,null,null,null,null,null,null,null,null,null,null,null,null,null,null,null,null,null,null,null,null,null,null,null,null,null,null,null,null,null,null,null,null,null,null,null,null,null,null,null,null,null,null,null,null,null,null,null,null,null,null,null,null,null,null,null,null,null,null,null,null,null,null,null,null,null,null,null,null,null,null,null,null,null,null,null,null,null,null,null,null,null,null,null,null,null,null,null,null,null,null,null,null,null,null,null,null,null,null,null,null,null,null,null,null,null,null,null,null,null,null,null,null,null,null,null,null,null,null,null,null,null,null,null,null,null,null,null,null,null,null,null,null,null,null,null,null,null,null,null,null,null,null,null,null,null,null,null,null,null,null,null,null,null,null,null,null,null,null,null,null,null,null,null,null,null,null,null,null,null,null,null,null,null,null,null,null,null,null,null,null,null,null,null,null,null,null,null,null,null,null,null,null,null,null,null,null,null,null,null,null,null,null,null,null,null,null,null,null,null,null,null,null,null,null,null,null,null,null,null,null,null,null,null,null,null,null,null,null,null,null,null,null,null,null,null,null,null,null,null,null,null,null,null,null,null,null,null,null,null,null,null,null,null,null,null,null,null,null,null,null,null,null,null,null,null,null,null,null,null,null,null,null,null,null,null,null,null,null,null,null,null,null,null,null,null,null,null,null,null,null,null,null,null,null,null,null,null,null,null,null,null,null,null,null,null,null,null,null,null,null,null,null,null,null,null,null,null,null,null,null,null,null,null,null,null,null,null,null,null,null,null,null,null,null,null,null,null,null,null,null,null,null,null,null,null,null,null,null,null,null,null,null,null,null,null,null,null,null,null,null,null,null,null,null,null,null,null,null,null,null,null,null,null,null,null,null,null,null,null,null,null,null,null,null,null,null,null,null,null,null,null,null,null,null,null,null,null,null,null,null,null,null,null,null,null,null,null,null,null,null,null,null,null,null,null,null,null,null,null,null,null,null,null,null,null,null,null,null,null,null,null,null,null,null,null,null,null,null,null,null,null,null,null,null,null,null,null,null,null,null,null,null,null,null,null,null,null,null,null,null,null,null,null,null,null,null,null,null,null,null,null,null,null,null,null,null,null,null,null,null,null,null,null,null,null,null,null,null,null,null,null,null,null,null,null,null,null,null,null,null,null,null,null,null,null,null,null,null,null,null,null,null,null,null,null,null,null,null,null,null,null,null,null,null,null,null,null,null,null,null,null,null,null,null,null,null,null,null,null,null,null,null,null,null,null,null,null,null,null,null,null,null,null,null,null,null,null,null,null,null,null,null,null,null,null,null,null,null,null,null,null,null,null,null,null,null,null,null,null,null,null,null,null,null,null,null,null,null,null,null,null,null,null,null,null,null,null,null,null,null,null,null,null,null,null,null,null,null,null,null,null,null,null,null,null,null,null,null,null,null,null,null,null,null,null,null,null,null,null,null,null,null,null,null,null,null,null,null,null,null,null,null,null,null,null,null,null,null,null,null,null,null,null,null,null,null,null,null,null,null,null,null,null,null,null,null,null,null,null,null,null,null,null,null,null,null,null,null,null,null,null,null,null,null,null,null,null,null,null,null,null,null,null,null,null,null,null,null,null,null,null,null,null,null,null,null,null,null,null,null,null,null,null,null,null,null,null,null,null,null,null,null,null,null,null,null,null,null,null,null,null,null,null,null,null,null,null,null,null,null,null,null,null,null,null,null,null,null,null,null,null,null,null,null,null,null,null,null,null,null,null,null,null,null,null,null,null,null,null,null,null,null,null,null,null,null,null,null,null,null,null,null,null,null,null,null,null,null,null,null,null,null,null,null,null,null,null,null,null,null,null,null,null,null,null,null,null,null,null,null,null,null,null,null,null,null,null,null,null,null,null,null,null,null,null,null,null,null,null,null,null,null,null,null,null,null,null,null,null,null,null,null,null,null,null,null,null,null,null,null,null,null,null,null,null,null,null,null,null,null,null,null,null,null,null,null,null,null,null,null,null,null,null,null,null,null,null,null,null,null,null,null,null,null,null,null,null,null,null,null,null,null,null,null,null,null,null,null,null,null,null,null,null,null,null,null,null,null,null,null,null,null,null,null,null,null,null,null,null,null,null,null,null,null,null,null,null,null,null,null,null,null,null,null,null,null,null,null,null,null,null,null,null,null,null,null,null,null,null,null,null,null,null,null,null,null,null,null,null,null,null,null,null,null,null,null,null,null,null,null,null,null,null,null,null,null,null,null,null,null,null,null,null,null,null,null,null,null,null,null,null,null,null,null,null,null,null,null,null,null,null,null,null,null,null,null,null,null,null,null,null,null,null,null,null,null,null,null,null,null,null,null,null,null,null,null,null,null,null,null,null,null,null,null,null,null,null,null,null,null,null,null,null,null,null,null,null,null,null,null,null,null,null,null,null,null,null,null,null,null,null,null,null,null,null,null,null,null,null,null,null,null,null,null,null,null,null,null,null,null,null,null,null,null,null,null,null,null,null,null,null,null,null,null,null,null,null,null,null,null,null,null,null,null,null,null,null,null,null,null,null,null,null,null,null,null,null,null,null,null,null,null,null,null,null,null,null,null,null,null,null,null,null,null,null,null,null,null,null,null,null,null,null,null,null,null,null,null,null,null,null,null,null,null,null,null,null,null,null,null,null,null,null,null,null,null,null,null,null,null,null,null,null,null,null,null,null,null,null,null,null,null,null,null,null,null,null,null,null,null,null,null,null,null,null,null,null,null,null,null,null,null,null,null,null,null,null,null,null,null,null,null,null,null,null,null,null,null,null,null,null,null,null,null,null,null,null,null,null,null,null,null,null,null,null,null,null,null,null,null,null,null,null,null,null,null,null,null,null,null,null,null,null,null,null,null,null,null,null,null,null,null,null,null,null,null,null,null,null,null,null,null,null,null,null,null,null,null,null,null,null,null,null,null,null,null,null,null,null,null,null,null,null,null,null,null,null,null,null,null,null,null,null,null,null,null,null,null,null,null,null,null,null,null,null,null,null,null,null,null,null,null,null,null,null,null,null,null,null,null,null,null,null,null,null,null,null,null,null,null,null,null,null,null,null,null,null,null,null,null,null,null,null,null,null,null,null,null,null,null,null,null,null,null,null,null,null,null,null,null,null,null,null,null,null,null,null,null,null,null,null,null,null,null,null,null,null,null,null,null,null,null,null,null,null,null,null,null,null,null,null,null,null,null,null,null,null,null,null,null,null,null,null,null,null,null,null,null,null,null,null,null,null,null,null,null,null,null,null,null,null,null,null,null,null,null,null,null,null,null,null,null,null,null,null,null,null,null,null,null,null,null,null,null,null,null,null,null,null,null,null,null,null,null,null,null,null,null,null,null,null,null,null,null,null,null,null,null,null,null,null,null,null,null,null,null,null,null,null,null,null,null,null,null,null,null,null,null,null,null,null,null,null,null,null,null,null,null,null,null,null,null,null,null,null,null,null,null,null,null,null,null,null,null,null,null,null,null,null,null,null,null,null,null,null,null,null,null,null,null,null,null,null,null,null,null,null,null,null,null,null,null,null,null,null,null,null,null,null,null,null,null,null,null,null,null,null,null,null,null,null,null,null,null,null,null,null,null,null,null,null,null,null,null,null,null,null,null,null,null,null,null,null,null,null,null,null,null,null,null,null,null,null,null,null,null,null,null,null,null,null,null,null,null,null,null,null,null,null,null,null,null,null,null,null,null,null,null,null,null,null,null,null,null,null,null,null,null,null,null,null,null,null,null,null,null,null,null,null,null,null,null,null,null,null,null,null,null,null,null,null,null,null,null,null,null,null,null,null,null,null,null,null,null,null,null,null,null,null,null,null,null,null,null,null,null,null,null,null,null,null,null,null,null,null,null,null,null,null,null,null,null,null,null,null,null,null,null,null,null,null,null,null,null,null,null,null,null,null,null,null,null,null,null,null,null,null,null,null,null,null,null,null,null,null,null,null,null,null,null,null,null,null,null,null,null,null,null,null,null,null,null,null,null,null,null,null,null,null,null,null,null,null,null,null,null,null,null,null,null,null,null,null,null,null,null,null,null,null,null,null,null,null,null,null,null,null,null,null,null,null,null,null,null,null,null,null,null,null,null,null,null,null,null,null,null,null,null,null,null,null,null,null,null,null,null,null,null,null,null,null,null,null,null,null,null,null,null,null,null,null,null,null,null,null,null,null,null,null,null,null,null,null,null,null,null,null,null,null,null,null,null,null,null,null,null,null,null,null,null,null,null,null,null,null,null,null,null,null,null,null,null,null,null,null,null,null,null,null,null,null,null,null,null,null,null,null,null,null,null,null,null,null,null,null,null,null,null,null,null,null,null,null,null,null,null,null,null,null,null,null,null,null,null,null,null,null,null,null,null,null,null,null,null,null,null,null,null,null,null,null,null,null,null,null,null,null,null,null,null,null,null,null,null,null,null,null,null,null,null,null,null,null,null,null,null,null,null,null,null,null,null,null,null,null,null,null,null,null,null,null,null,null,null,null,null,null,null,null,null,null,null,null,null,null,null,null,null,null,null,null,null,null,null,null,null,null,null,null,null,null,null,null,null,null,null,null,null,null,null,null,null,null,null,null,null,null,null,null,null,null,null,null,null,null,null,null,null,null,null,null,null,null,null,null,null,null,null,null,null,null,null,null,null,null,null,null,null,null,null,null,null,null,null,null,null,null,null,null,null,null,null,null,null,null,null,null,null,null,null,null,null,null,null,null,null,null,null,null,null,null,null,null,null,null,null,null,null,null,null,null,null,null,null,null,null,null,null,null,null,null,null,null,null,null,null,null,null,null,null,null,null,null,null,null,null,null,null,null,null,null,null,null,null,null,null,null,null,null,null,null,null,null,null,null,null,null,null,null,null,null,null,null,null,null,null,null,null,null,null,null,null,null,null,null,null,null,null,null,null,null,null,null,null,null,null,null,null,null,null,null,null,null,null,null,null,null,null,null,null,null,null,null,null,null,null,null,null,null,null,null,null,null,null,null,null,null,null,null,null,null,null,null,null,null,null,null,null,null,null,null,null,null,null,null,null,null,null,null,null,null,null,null,null,null,null,null,null,null,null,null,null,null,null,null,null,null,null,null,null,null,null,null,null,null,null,null,null,null,null,null,null,null,null,null,null,null,null,null,null,null,null,null,null,null,null,null,null,null,null,null,null,null,null,null,null,null,null,null,null,null,null,null,null,null,null,null,null,null,null,null,null,null,null,null,null,null,null,null,null,null,null,null,null,null,null,null,null,null,null,null,null,null,null,null,null,null,null,null,null,null,null,null,null,null,null,null,null,null,null,null,null,null,null,null,null,null,null,null,null,null,null,null,null,null,null,null,null,null,null,null,null,null,null,null,null,null,null,null,null,null,null,null,null,null,null,null,null,null,null,null,null,null,null,null,null,null,null,null,null,null,null,null,null,null,null,null,null,null,null,null,null,null,null,null,null,null,null,null,null,null,null,null,null,null,null,null,null,null,null,null,null,null,null,null,null,null,null,null,null,null,null,null,null,null,null,null,null,null,null,null,null,null,null,null,null,null,null,null,null,null,null,null,null,null,null,null,null,null,null,null,null,null,null,null,null,null,null,null,null,null,null,null,null,null,null,null,null,null,null,null,null,null,null,null,null,null,null,null,null,null,null,null,null,null,null,null,null,null,null,null,null,null,null,null,null,null,null,null,null,null,null,null,null,null,null,null,null,null,null,null,null,null,null,null,null,null,null,null,null,null,null,null,null,null,null,null,null,null,null,null,null,null,null,null,null,null,null,null,null,null,null,null,null,null,null,null,null,null,null,null,null,null,null,null,null,null,null,null,null,null,null,null,null,null,null,null,null,null,null,null,null,null,null,null,null,null,null,null,null,null,null,null,null,null,null,null,null,null,null,null,null,null,null,null,null,null,null,null,null,null,null,null,null,null,null,null,null,null,null,null,null,null,null,null,null,null,null,null,null,null,null,null,null,null,null,null,null,null,null,null,null,null,null,null,null,null,null,null,null,null,null,null,null,null,null,null,null,null,null,null,null,null,null,null,null,null,null,null,null,null,null,null,null,null,null,null,null,null,null,null,null,null,null,null,null,null,null,null,null,null,null,null,null,null,null,null,null,null,null,null,null,null,null,null,null,null,null,null,null,null,null,null,null,null,null,null,null,null,null,null,null,null,null,null,null,null,null,null,null,null,null,null,null,null,null,null,null,null,null,null,null,null,null,null,null,null,null,null,null,null,null,null,null,null,null,null,null,null,null,null,null,null,null,null,null,null,null,null,null,null,null,null,null,null,null,null,null,null,null,null,null,null,null,null,null,null,null,null,null,null,null,null,null,null,null,null,null,null,null,null,null,null,null,null,null,null,null,null,null,null,null,null,null,null,null,null,null,null,null,null,null,null,null,null,null,null,null,null,null,null,null,null,null,null,null,null,null,null,null,null,null,null,null,null,null,null,null,null,null,null,null,null,null,null,null,null,null,null,null,null,null,null,null,null,null,null,null,null,null,null,null,null,null,null,null,null,null,null,null,null,null,null,null,null,null,null,null,null,null,null,null,null,null,null,null,null,null,null,null,null,null,null,null,null,null,null,null,null,null,null,null,null,null,null,null,null,null,null,null,null,null,null,null,null,null,null,null,null,null,null,null,null,null,null,null,null,null,null,null,null,null,null,null,null,null,null,null,null,null,null,null,null,null,null,null,null,null,null,null,null,null,null,null,null,null,null,null,null,null,null,null,null,null,null,null,null,null,null,null,null,null,null,null,null,null,null,null,null,null,null,null,null,null,null,null,null,null,null,null,null,null,null,null,null,null,null,null,null,null,null,null,null,null,null,null,null,null,null,null,null,null,null,null,null,null,null,null,null,null,null,null,null,null,null,null,null,null,null,null,null,null,null,null,null,null,null,null,null,null,null,null,null,null,null,null,null,null,null,null,null,null,null,null,null,null,null,null,null,null,null,null,null,null,null,null,null,null,null,null,null,null,null,null,null,null,null,null,null,null,null,null,null,null,null,null,null,null,null,null,null,null,null,null,null,null,null,null,null,null,null,null,null,null,null,null,null,null,null,null,null,null,null,null,null,null,null,null,null,null,null,null,null,null,null,null,null,null,null,null,null,null,null,null,null,null,null,null,null,null,null,null,null,null,null,null,null,null,null,null,null,null,null,null,null,null,null,null,null,null,null,null,null,null,null,null,null,null,null,null,null,null,null,null,null,null,null,null,null,null,null,null,null,null,null,null,null,null,null,null,null,null,null,null,null,null,null,null,null,null,null,null,null,null,null,null,null,null,null,null,null,null,null,null,null,null,null,null,null,null,null,null,null,null,null,null,null,null,null,null,null,null,null,null,null,null,null,null,null,null,null,null,null,null,null,null,null,null,null,null,null,null,null,null,null,null,null,null,null,null,null,null,null,null,null,null,null,null,null,null,null,null,null,null,null,null,null,null,null,null,null,null,null,null,null,null,null,null,null,null,null,null,null,null,null,null,null,null,null,null,null,null,null,null,null,null,null,null,null,null,null,null,null,null,null,null,null,null,null,null,null,null,null,null,null,null,null,null,null,null,null,null,null,null,null,null,null,null,null,null,null,null,null,null,null,null,null,null,null,null,null,null,null,null,null,null,null,null,null,null,null,null,null,null,null,null,null,null,null,null,null,null,null,null,null,null,null,null,null,null,null,null,null,null,null,null,null,null,null,null,null,null,null,null,null,null,null,null,null,null,null,null,null,null,null,null,null,null,null,null,null,null,null,null,null,null,null,null,null,null,null,null,null,null,null,null,null,null,null,null,null,null,null,null,null,null,null,null,null,null,null,null,null,null,null,null,null,null,null,null,null,null,null,null,null,null,null,null,null,null,null,null,null,null,null,null,null,null,null,null,null,null,null,null,null,null,null,null,null,null,null,null,null,null,null,null,null,null,null,null,null,null,null,null,null,null,null,null,null,null,null,null,null,null,null,null,null,null,null,null,null,null,null,null,null,null,null,null,null,null,null,null,null,null,null,null,null,null,null,null,null,null,null,null,null,null,null,null,null,null,null,null,null,null,null,null,null,null,null,null,null,null,null,null,null,null,null,null,null,null,null,null,null,null,null,null,null,null,null,null,null,null,null,null,null,null,null,null,null,null,null,null,null,null,null,null,null,null,null,null,null,null,null,null,null,null,null,null,null,null,null,null,null,null,null,null,null,null,null,null,null,null,null,null,null,null,null,null,null,null,null,null,null,null,null,null,null,null,null,null,null,null,null,null,null,null,null,null,null,null,null,null,null,null,null,null,null,null,null,null,null,null,null,null,null,null,null,null,null,null,null,null,null,null,null,null,null,null,null,null,null,null,null,null,null,null,null,null,null,null,null,null,null,null,null,null,null,null,null,null,null,null,null,null,null,null,null,null,null,null,null,null,null,null,null,null,null,null,null,null,null,null,null,null,null,null,null,null,null,null,null,null,null,null,null,null,null,null,null,null,null,null,null,null,null,null,null,null,null,null,null,null,null,null,null,null,null,null,null,null,null,null,null,null,null,null,null,null,null,null,null,null,null,null,null,null,null,null,null,null,null,null,null,null,null,null,null,null,null,null,null,null,null,null,null,null,null,null,null,null,null,null,null,null,null,null,null,null,null,null,null,null,null,null,null,null,null,null,null,null,null,null,null,null,null,null,null,null,null,null,null,null,null,null,null,null,null,null,null,null,null,null,null,null,null,null,null,null,null,null,null,null,null,null,null,null,null,null,null,null,null,null,null,null,null,null,null,null,null,null,null,null,null,null,null,null,null,null,null,null,null,null,null,null,null,null,null,null,null,null,null,null,null,null,null,null,null,null,null,null,null,null,null,null,null,null,null,null,null,null,null,null,null,null,null,null,null,null,null,null,null,null,null,null,null,null,null,null,null,null,null,null,null,null,null,null,null,null,null,null,null,null,null,null,null,null,null,null,null,null,null,null,null,null,null,null,null,null,null,null,null,null,null,null,null,null,null,null,null,null,null,null,null,null,null,null,null,null,null,null,null,null,null,null,null,null,null,null,null,null,null,null,null,null,null,null,null,null,null,null,null,null,null,null,null,null,null,null,null,null,null,null,null,null,null,null,null,null,null,null,null,null,null,null,null,null,null,null,null,null,null,null,null,null,null,null,null,null,null,null,null,null,null,null,null,null,null,null,null,null,null,null,null,null,null,null,null,null,null,null,null,null,null,null,null,null,null,null,null,null,null,null,null,null,null,null,null,null,null,null,null,null,null,null,null,null,null,null,null,null,null,null,null,null,null,null,null,null,null,null,null,null,null,null,null,null,null,null,null,null,null,null,null,null,null,null,null,null,null,null,null,null,null,null,null,null,null,null,null,null,null,null,null,null,null,null,null,null,null,null,null,null,null,null,null,null,null,null,null,null,null,null,null,null,null,null,null,null,null,null,null,null,null,null,null,null,null,null,null,null,null,null,null,null,null,null,null,null,null,null,null,null,null,null,null,null,null,null,null,null,null,null,null,null,null,null,null,null,null,null,null,null,null,null,null,null,null,null,null,null,null,null,null,null,null,null,null,null,null,null,null,null,null,null,null,null,null,null,null,null,null,null,null,null,null,null,null,null,null,null,null,null,null,null,null,null,null,null,null,null,null,null,null,null,null,null,null,null,null,null,null,null,null,null,null,null,null,null,null,null,null,null,null,null,null,null,null,null,null,null,null,null,null,null,null,null,null,null,null,null,null,null,null,null,null,null,null,null,null,null,null,null,null,null,null,null,null,null,null,null,null,null,null,null,null,null,null,null,null,null,null,null,null,null,null,null,null,null,null,null,null,null,null,null,null,null,null,null,null,null,null,null,null,null,null,null,null,null,null,null,null,null,null,null,null,null,null,null,null,null,null,null,null,null,null,null,null,null,null,null,null,null,null,null,null,null,null,null,null,null,null,null,null,null,null,null,null,null,null,null,null,null,null,null,null,null,null,null,null,null,null,null,null,null,null,null,null,null,null,null,null,null,null,null,null,null,null,null,null,null,null,null,null,null,null,null,null,null,null,null,null,null,null,null,null,null,null,null,null,null,null,null,null,null,null,null,null,null,null,null,null,null,null,null,null,null,null,null,null,null,null,null,null,null,null,null,null,null,null,null,null,null,null,null,null,null,null,null,null,null,null,null,null,null,null,null,null,null,null,null,null,null,null,null,null,null,null,null,null,null,null,null,null,null,null,null,null,null,null,null,null,null,null,null,null,null,null,null,null,null,null,null,null,null,null,null,null,null,null,null,null,null,null,null,null,null,null,null,null,null,null,null,null,null,null,null,null,null,null,null,null,null,null,null,null,null,null,null,null,null,null,null,null,null,null,null,null,null,null,null,null,null,null,null,null,null,null,null,null,null,null,null,null,null,null,null,null,null,null,null,null,null,null,null,null,null,null,null,null,null,null,null,null,null,null,null,null,null,null,null,null,null,null,null,null,null,null,null,null,null,null,null,null,null,null,null,null,null,null,null,null,null,null,null,null,null,null,null,null,null,null,null,null,null,null,null,null,null,null,null,null,null,null,null,null,null,null,null,null,null,null,null,null,null,null,null,null,null,null,null,null,null,null,null,null,null,null,null,null,null,null,null,null,null,null,null,null,null,null,null,null,null,null,null,null,null,null,null,null,null,null,null,null,null,null,null,null,null,null,null,null,null,null,null,null,null,null,null,null,null,null,null,null,null,null,null,null,null,null,null,null,null,null,null,null,null,null,null,null,null,null,null,null,null,null,null,null,null,null,null,null,null,null,null,null,null,null,null,null,null,null,null,null,null,null,null,null,null,null,null,null,null,null,null,null,null,null,null,null,null,null,null,null,null,null,null,null,null,null,null,null,null,null,null,null,null,null,null,null,null,null,null,null,null,null,null,null,null,null,null,null,null,null,null,null,null,null,null,null,null,null,null,null,null,null,null,null,null,null,null,null,null,null,null,null,null,null,null,null,null,null,null,null,null,null,null,null,null,null,null,null,null,null,null,null,null,null,null,null,null,null,null,null,null,null,null,null,null,null,null,null,null,null,null,null,null,null,null,null,null,null,null,null,null,null,null,null,null,null,null,null,null,null,null,null,null,null,null,null,null,null,null,null,null,null,null,null,null,null,null,null,null,null,null,null,null,null,null,null,null,null,null,null,null,null,null,null,null,null,null,null,null,null,null,null,null,null,null,null,null,null,null,null,null,null,null,null,null,null,null,null,null,null,null,null,null,null,null,null,null,null,null,null,null,null,null,null,null,null,null,null,null,null,null,null,null,null,null,null,null,null,null,null,null,null,null,null,null,null,null,null,null,null,null,null,null,null,null,null,null,null,null,null,null,null,null,null,null,null,null,null,null,null,null,null,null,null,null,null,null,null,null,null,null,null,null,null,null,null,null,null,null,null,null,null,null,null,null,null,null,null,null,null,null,null,null,null,null,null,null,null,null,null,null,null,null,null,null,null,null,null,null,null,null,null,null,null,null,null,null,null,null,null,null,null,null,null,null,null,null,null,null,null,null,null,null,null,null,null,null,null,null,null,null,null,null,null,null,null,null,null,null,null,null,null,null,null,null,null,null,null,null,null,null,null,null,null,null,null,null,null,null,null,null,null,null,null,null,null,null,null,null,null,null,null,null,null,null,null,null,null,null,null,null,null,null,null,null,null,null,null,null,null,null,null,null,null,null,null,null,null,null,null,null,null,null,null,null,null,null,null,null,null,null,null,null,null,null,null,null,null,null,null,null,null,null,null,null,null,null,null,null,null,null,null,null,null,null,null,null,null,null,null,null,null,null,null,null,null,null,null,null,null,null,null,null,null,null,null,null,null,null,null,null,null,null,null,null,null,null,null,null,null,null,null,null,null,null,null,null,null,null,null,null,null,null,null,null,null,null,null,null,null,null,null,null,null,null,null,null,null,null,null,null,null,null,null,null,null,null,null,null,null,null,null,null,null,null,null,null,null,null,null,null,null,null,null,null,null,null,null,null,null,null,null,null,null,null,null,null,null,null,null,null,null,null,null,null,null,null,null,null,null,null,null,null,null,null,null,null,null,null,null,null,null,null,null,null,null,null,null,null,null,null,null,null,null,null,null,null,null,null,null,null,null,null,null,null,null,null,null,null,null,null,null,null,null,null,null,null,null,null,null,null,null,null,null,null,null,null,null,null,null,null,null,null,null,null,null,null,null,null,null,null,null,null,null,null,null,null,null,null,null,null,null,null,null,null,null,null,null,null,null,null,null,null,null,null,null,null,null,null,null,null,null,null,null,null,null,null,null,null,null,null,null,null,null,null,null,null,null,null,null,null,null,null,null,null,null,null,null,null,null,null,null,null,null,null,null,null,null,null,null,null,null,null,null,null,null,null,null,null,null,null,null,null,null,null,null,null,null,null,null,null,null,null,null,null,null,null,null,null,null,null,null,null,null,null,null,null,null,null,null,null,null,null,null,null,null,null,null,null,null,null,null,null,null,null,null,null,null,null,null,null,null,null,null,null,null,null,null,null,null,null,null,null,null,null,null,null,null,null,null,null,null,null,null,null,null,null,null,null,null,null,null,null,null,null,null,null,null,null,null,null,null,null,null,null,null,null,null,null,null,null,null,null,null,null,null,null,null,null,null,null,null,null,null,null,null,null,null,null,null,null,null,null,null,null,null,null,null,null,null,null,null,null,null,null,null,null,null,null,null,null,null,null,null,null,null,null,null,null,null,null,null,null,null,null,null,null,null,null,null,null,null,null,null,null,null,null,null,null,null,null,null,null,null,null,null,null,null,null,null,null,null,null,null,null,null,null,null,null,null,null,null,null,null,null,null,null,null,null,null,null,null,null,null,null,null,null,null,null,null,null,null,null,null,null,null,null,null,null,null,null,null,null,null,null,null,null,null,null,null,null,null,null,null,null,null,null,null,null,null,null,null,null,null,null,null,null,null,null,null,null,null,null,null,null,null,null,null,null,null,null,null,null,null,null,null,null,null,null,null,null,null,null,null,null,null,null,null,null,null,null,null,null,null,null,null,null,null,null,null,null,null,null,null,null,null,null,null,null,null,null,null,null,null,null,null,null,null,null,null,null,null,null,null,null,null,null,null,null,null,null,null,null,null,null,null,null,null,null,null,null,null,null,null,null,null,null,null,null,null,null,null,null,null,null,null,null,null,null,null,null,null,null,null,null,null,null,null,null,null,null,null,null,null,null,null,null,null,null,null,null,null,null,null,null,null,null,null,null,null,null,null,null,null,null,null,null,null,null,null,null,null,null,null,null,null,null,null,null,null,null,null,null,null,null,null,null,null,null,null,null,null,null,null,null,null,null,null,null,null,null,null,null,null,null,null,null,null,null,null,null,null,null,null,null,null,null,null,null,null,null,null,null,null,null,null,null,null,null,null,null,null,null,null,null,null,null,null,null,null,null,null,null,null,null,null,null,null,null,null,null,null,null,null,null,null,null,null,null,null,null,null,null,null,null,null,null,null,null,null,null,null,null,null,null,null,null,null,null,null,null,null,null,null,null,null,null,null,null,null,null,null,null,null,null,null,null,null,null,null,null,null,null,null,null,null,null,null,null,null,null,null,null,null,null,null,null,null,null,null,null,null,null,null,null,null,null,null,null,null,null,null,null,null,null,null,null,null,null,null,null,null,null,null,null,null,null,null,null,null,null,null,null,null,null,null,null,null,null,null,null,null,null,null,null,null,null,null,null,null,null,null,null,null,null,null,null,null,null,null,null,null,null,null,null,null,null,null,null,null,null,null,null,null,null,null,null,null,null,null,null,null,null,null,null,null,null,null,null,null,null,null,null,null,null,null,null,null,null,null,null,null,null,null,null,null,null,null,null,null,null,null,null,null,null,null,null,null,null,null,null,null,null,null,null,null,null,null,null,null,null,null,null,null,null,null,null,null,null,null,null,null,null,null,null,null,null,null,null,null,null,null,null,null,null,null,null,null,null,null,null,null,null,null,null,null,null,null,null,null,null,null,null,null,null,null,null,null,null,null,null,null,null,null,null,null,null,null,null,null,null,null,null,null,null,null,null,null,null,null,null,null,null,null,null,null,null,null,null,null,null,null,null,null,null,null,null,null,null,null,null,null,null,null,null,null,null,null,null,null,null,null,null,null,null,null,null,null,null,null,null,null,null,null,null,null,null,null,null,null,null,null,null,null,null,null,null,null,null,null,null,null,null,null,null,null,null,null,null,null,null,null,null,null,null,null,null,null,null,null,null,null,null,null,null,null,null,null,null,null,null,null,null,null,null,null,null,null,null,null,null,null,null,null,null,null,null,null,null,null,null,null,null,null,null,null,null,null,null,null,null,null,null,null,null,null,null,null,null,null,null,null,null,null,null,null,null,null,null,null,null,null,null,null,null,null,null,null,null,null,null,null,null,null,null,null,null,null,null,null,null,null,null,null,null,null,null,null,null,null,null,null,null,null,null,null,null,null,null,null,null,null,null,null,null,null,null,null,null,null,null,null,null,null,null,null,null,null,null,null,null,null,null,null,null,null,null,null,null,null,null,null,null,null,null,null,null,null,null,null,null,null,null,null,null,null,null,null,null,null,null,null,null,null,null,null,null,null,null,null,null,null,null,null,null,null,null,null,null,null,null,null,null,null,null,null,null,null,null,null,null,null,null,null,null,null,null,null,null,null,null,null,null,null,null,null,null,null,null,null,null,null,null,null,null,null,null,null,null,null,null,null,null,null,null,null,null,null,null,null,null,null,null,null,null,null,null,null,null,null,null,null,null,null,null,null,null,null,null,null,null,null,null,null,null,null,null,null,null,null,null,null,null,null,null,null,null,null,null,null,null,null,null,null,null,null,null,null,null,null,null,null,null,null,null,null,null,null,null,null,null,null,null,null,null,null,null,null,null,null,null,null,null,null,null,null,null,null,null,null,null,null,null,null,null,null,null,null,null,null,null,null,null,null,null,null,null,null,null,null,null,null,null,null,null,null,null,null,null,null,null,null,null,null,null,null,null,null,null,null,null,null,null,null,null,null,null,null,null,null,null,null,null,null,null,null,null,null,null,null,null,null,null,null,null,null,null,null,null,null,null,null,null,null,null,null,null,null,null,null,null,null,null,null,null,null,null,null,null,null,null,null,null,null,null,null,null,null,null,null,null,null,null,null,null,null,null,null,null,null,null,null,null,null,null,null,null,null,null,null,null,null,null,null,null,null,null,null,null,null,null,null,null,null,null,null,null,null,null,null,null,null,null,null,null,null,null,null,null,null,null,null,null,null,null,null,null,null,null,null,null,null,null,null,null,null,null,null,null,null,null,null,null,null,null,null,null,null,null,null,null,null,null,null,null,null,null,null,null,null,null,null,null,null,null,null,null,null,null,null,null,null,null,null,null,null,null,null,null,null,null,null,null,null,null,null,null,null,null,null,null,null,null,null,null,null,null,null,null,null,null,null,null,null,null,null,null,null,null,null,null,null,null,null,null,null,null,null,null,null,null,null,null,null,null,null,null,null,null,null,null,null,null,null,null,null,null,null,null,null,null,null,null,null,null,null,null,null,null,null,null,null,null,null,null,null,null,null,null,null,null,null,null,null,null,null,null,null,null,null,null,null,null,null,null,null,null,null,null,null,null,null,null,null,null,null,null,null,null,null,null,null,null,null,null,null,null,null,null,null,null,null,null,null,null,null,null,null,null,null,null,null,null,null,null,null,null,null,null,null,null,null,null,null,null,null,null,null,null,null,null,null,null,null,null,null,null,null,null,null,null,null,null,null,null,null,null,null,null,null,null,null,null,null,null,null,null,null,null,null,null,null,null,null,null,null,null,null,null,null,null,null,null,null,null,null,null,null,null,null,null,null,null,null,null,null,null,null,null,null,null,null,null,null,null,null,null,null,null,null,null,null,null,null,null,null,null,null,null,null,null,null,null,null,null,null,null,null,null,null,null,null,null,null,null,null,null,null,null,null,null,null,null,null,null,null,null,null,null,null,null,null,null,null,null,null,null,null,null,null,null,null,null,null,null,null,null,null,null,null,null,null,null,null,null,null,null,null,null,null,null,null,null,null,null,null,null,null,null,null,null,null,null,null,null,null,null,null,null,null,null,null,null,null,null,null,null,null,null,null,null,null,null,null,null,null,null,null,null,null,null,null,null,null,null,null,null,null,null,null,null,null,null,null,null,null,null,null,null,null,null,null,null,null,null,null,null,null,null,null,null,null,null,null,null,null,null,null,null,null,null,null,null,null,null,null,null,null,null,null,null,null,null,null,null,null,null,null,null,null,null,null,null,null,null,null,null,null,null,null,null,null,null,null,null,null,null,null,null,null,null,null,null,null,null,null,null,null,null,null,null,null,null,null,null,null,null,null,null,null,null,null,null,null,null,null,null,null,null,null,null,null,null,null,null,null,null,null,null,null,null,null,null,null,null,null,null,null,null,null,null,null,null,null,null,null,null,null,null,null,null,null,null,null,null,null,null,null,null,null,null,null,null,null,null,null,null,null,null,null,null,null,null,null,null,null,null,null,null,null,null,null,null,null,null,null,null,null,null,null,null,null,null,null,null,null,null,null,null,null,null,null,null,null,null,null,null,null,null,null,null,null,null,null,null,null,null,null,null,null,null,null,null,null,null,null,null,null,null,null,null,null,null,null,null,null,null,null,null,null,null,null,null,null,null,null,null,null,null,null,null,null,null,null,null,null,null,null,null,null,null,null,null,null,null,null,null,null,null,null,null,null,null,null,null,null,null,null,null,null,null,null,null,null,null,null,null,null,null,null,null,null,null,null,null,null,null,null,null,null,null,null,null,null,null,null,null,null,null,null,null,null,null,null,null,null,null,null,null,null,null,null,null,null,null,null,null,null,null,null,null,null,null,null,null,null,null,null,null,null,null,null,null,null,null,null,null,null,null,null,null,null,null,null,null,null,null,null,null,null,null,null,null,null,null,null,null,null,null,null,null,null,null,null,null,null,null,null,null,null,null,null,null,null,null,null,null,null,null,null,null,null,null,null,null,null,null,null,null,null,null,null,null,null,null,null,null,null,null,null,null,null,null,null,null,null,null,null,null,null,null,null,null,null,null,null,null,null,null,null,null,null,null,null,null,null,null,null,null,null,null,null,null,null,null,null,null,null,null,null,null,null,null,null,null,null,null,null,null,null,null,null,null,null,null,null,null,null,null,null,null,null,null,null,null,null,null,null,null,null,null,null,null,null,null,null,null,null,null,null,null,null,null,null,null,null,null,null,null,null,null,null,null,null,null,null,null,null,null,null,null,null,null,null,null,null,null,null,null,null,null,null,null,null,null,null,null,null,null,null,null,null,null,null,null,null,null,null,null,null,null,null,null,null,null,null,null,null,null,null,null,null,null,null,null,null,null,null,null,null,null,null,null,null,null,null,null,null,null,null,null,null,null,null,null,null,null,null,null,null,null,null,null,null,null,null,null,null,null,null,null,null,null,null,null,null,null,null,null,null,null,null,null,null,null,null,null,null,null,null,null,null,null,null,null,null,null,null,null,null,null,null,null,null,null,null,null,null,null,null,null,null,null,null,null,null,null,null,null,null,null,null,null,null,null,null,null,null,null,null,null,null,null,null,null,null,null,null,null,null,null,null,null,null,null,null,null,null,null,null,null,null,null,null,null,null,null,null,null,null,null,null,null,null,null,null,null,null,null,null,null,null,null,null,null,null,null,null,null,null,null,null,null,null,null,null,null,null,null,null,null,null,null,null,null,null,null,null,null,null,null,null,null,null,null,null,null,null,null,null,null,null,null,null,null,null,null,null,null,null,null,null,null,null,null,null,null,null,null,null,null,null,null,null,null,null,null,null,null,null,null,null,null,null,null,null,null,null,null,null,null,null,null,null,null,null,null,null,null,null,null,null,null,null,null,null,null,null,null,null,null,null,null,null,null,null,null,null,null,null,null,null,null,null,null,null,null,null,null,null,null,null,null,null,null,null,null,null,null,null,null,null,null,null,null,null,null,null,null,null,null,null,null,null,null,null,null,null,null,null,null,null,null,null,null,null,null,null,null,null,null,null,null,null,null,null,null,null,null,null,null,null,null,null,null,null,null,null,null,null,null,null,null,null,null,null,null,null,null,null,null,null,null,null,null,null,null,null,null,null,null,null,null,null,null,null,null,null,null,null,null,null,null,null,null,null,null,null,null,null,null,null,null,null,null,null,null,null,null,null,null,null,null,null,null,null,null,null,null,null,null,null,null,null,null,null,null,null,null,null,null,null,null,null,null,null,null,null,null,null,null,null,null,null,null,null,null,null,null,null,null,null,null,null,null,null,null,null,null,null,null,null,null,null,null,null,null,null,null,null,null,null,null,null,null,null,null,null,null,null,null,null,null,null,null,null,null,null,null,null,null,null,null,null,null,null,null,null,null,null,null,null,null,null,null,null,null,null,null,null,null,null,null,null,null,null,null,null,null,null,null,null,null,null,null,null,null,null,null,null,null,null,null,null,null,null,null,null,null,null,null,null,null,null,null,null,null,null,null,null,null,null,null,null,null,null,null,null,null,null,null,null,null,null,null,null,null,null,null,null,null,null,null,null,null,null,null,null,null,null,null,null,null,null,null,null,null,null,null,null,null,null,null,null,null,null,null,null,null,null,null,null,null,null,null,null,null,null,null,null,null,null,null,null,null,null,null,null,null,null,null,null,null,null,null,null,null,null,null,null,null,null,null,null,null,null,null,null,null,null,null,null,null,null,null,null,null,null,null,null,null,null,null,null,null,null,null,null,null,null,null,null,null,null,null,null,null,null,null,null,null,null,null,null,null,null,null,null,null,null,null,null,null,null,null,null,null,null,null,null,null,null,null,null,null,null,null,null,null,null,null,null,null,null,null,null,null,null,null,null,null,null,null,null,null,null,null,null,null,null,null,null,null,null,null,null,null,null,null,null,null,null,null,null,null,null,null,null,null,null,null,null,null,null,null,null,null,null,null,null,null,null,null,null,null,null,null,null,null,null,null,null,null,null,null,null,null,null,null,null,null,null,null,null,null,null,null,null,null,null,null,null,null,null,null,null,null,null,null,null,null,null,null,null,null,null,null,null,null,null,null,null,null,null,null,null,null,null,null,null,null,null,null,null,null,null,null,null,null,null,null,null,null,null,null,null,null,null,null,null,null,null,null,null,null,null,null,null,null,null,null,null,null,null,null,null,null,null,null,null,null,null,null,null,null,null,null,null,null,null,null,null,null,null,null,null,null,null,null,null,null,null,null,null,null,null,null,null,null,null,null,null,null,null,null,null,null,null,null,null,null,null,null,null,null,null,null,null,null,null,null,null,null,null,null,null,null,null,null,null,null,null,null,null,null,null,null,null,null,null,null,null,null,null,null,null,null,null,null,null,null,null,null,null,null,null,null,null,null,null,null,null,null,null,null,null,null,null,null,null,null,null,null,null,null,null,null,null,null,null,null,null,null,null,null,null,null,null,null,null,null,null,null,null,null,null,null,null,null,null,null,null,null,null,null,null,null,null,null,null,null,null,null,null,null,null,null,null,null,null,null,null,null,null,null,null,null,null,null,null,null,null,null,null,null,null,null,null,null,null,null,null,null,null,null,null,null,null,null,null,null,null,null,null,null,null,null,null,null,null,null,null,null,null,null,null,null,null,null,null,null,null,null,null,null,null,null,null,null,null,null,null,null,null,null,null,null,null,null,null,null,null,null,null,null,null,null,null,null,null,null,null,null,null,null,null,null,null,null,null,null,null,null,null,null,null,null,null,null,null,null,null,null,null,null,null,null,null,null,null,null,null,null,null,null,null,null,null,null,null,null,null,null,null,null,null,null,null,null,null,null,null,null,null,null,null,null,null,null,null,null,null,null,null,null,null,null,null,null,null,null,null,null,null,null,null,null,null,null,null,null,null,null,null,null,null,null,null,null,null,null,null,null,null,null,null,null,null,null,null,null,null,null,null,null,null,null,null,null,null,null,null,null,null,null,null,null,null,null,null,null,null,null,null,null,null,null,null,null,null,null,null,null,null,null,null,null,null,null,null,null,null,null,null,null,null,null,null,null,null,null,null,null,null,null,null,null,null,null,null,null,null,null,null,null,null,null,null,null,null,null,null,null,null,null,null,null,null,null,null,null,null,null,null,null,null,null,null,null,null,null,null,null,null,null,null,null,null,null,null,null,null,null,null,null,null,null,null,null,null,null,null,null,null,null,null,null,null,null,null,null,null,null,null,null,null,null,null,null,null,null,null,null,null,null,null,null,null,null,null,null,null,null,null,null,null,null,null,null,null,null,null,null,null,null,null,null,null,null,null,null,null,null,null,null,null,null,null,null,null,null,null,null,null,null,null,null,null,null,null,null,null,null,null,null,null,null,null,null,null,null,null,null,null,null,null,null,null,null,null,null,null,null,null,null,null,null,null,null,null,null,null,null,null,null,null,null,null,null,null,null,null,null,null,null,null,null,null,null,null,null,null,null,null,null,null,null,null,null,null,null,null,null,null,null,null,null,null,null,null,null,null,null,null,null,null,null,null,null,null,null,null,null,null,null,null,null,null,null,null,null,null,null,null,null,null,null,null,null,null,null,null,null,null,null,null,null,null,null,null,null,null,null,null,null,null,null,null,null,null,null,null,null,null,null,null,null,null,null,null,null,null,null,null,null,null,null,null,null,null,null,null,null,null,null,null,null,null,null,null,null,null,null,null,null,null,null,null,null,null,null,null,null,null,null,null,null,null,null,null,null,null,null,null,null,null,null,null,null,null,null,null,null,null,null,null,null,null,null,null,null,null,null,null,null,null,null,null,null,null,null,null,null,null,null,null,null,null,null,null,null,null,null,null,null,null,null,null,null,null,null,null,null,null,null,null,null,null,null,null,null,null,null,null,null,null,null,null,null,null,null,null,null,null,null,null,null,null,null,null,null,null,null,null,null,null,null,null,null,null,null,null,null,null,null,null,null,null,null,null,null,null,null,null,null,null,null,null,null,null,null,null,null,null,null,null,null,null,null,null,null,null,null,null,null,null,null,null,null,null,null,null,null,null,null,null,null,null,null,null,null,null,null,null,null,null,null,null,null,null,null,null,null,null,null,null,null,null,null,null,null,null,null,null,null,null,null,null,null,null,null,null,null,null,null,null,null,null,null,null,null,null,null,null,null,null,null,null,null,null,null,null,null,null,null,null,null,null,null,null,null,null,null,null,null,null,null,null,null,null,null,null,null,null,null,null,null,null,null,null,null,null,null,null,null,null,null,null,null,null,null,null,null,null,null,null,null,null,null,null,null,null,null,null,null,null,null,null,null,null,null,null,null,null,null,null,null,null,null,null,null,null,null,null,null,null,null,null,null,null,null,null,null,null,null,null,null,null,null,null,null,null,null,null,null,null,null,null,null,null,null,null,null,null,null,null,null,null,null,null,null,null,null,null,null,null,null,null,null,null,null,null,null,null,null,null,null,null,null,null,null,null,null,null,null,null,null,null,null,null,null,null,null,null,null,null,null,null,null,null,null,null,null,null,null,null,null,null,null,null,null,null,null,null,null,null,null,null,null,null,null,null,null,null,null,null,null,null,null,null,null,null,null,null,null,null,null,null,null,null,null,null,null,null,null,null,null,null,null,null,null,null,null,null,null,null,null,null,null,null,null,null,null,null,null,null,null,null,null,null,null,null,null,null,null,null,null,null,null,null,null,null,null,null,null,null,null,null,null,null,null,null,null,null,null,null,null,null,null,null,null,null,null,null,null,null,null,null,null,null,null,null,null,null,null,null,null,null,null,null,null,null,null,null,null,null,null,null,null,null,null,null,null,null,null,null,null,null,null,null,null,null,null,null,null,null,null,null,null,null,null,null,null,null,null,null,null,null,null,null,null,null,null,null,null,null,null,null,null,null,null,null,null,null,null,null,null,null,null,null,null,null,null,null,null,null,null,null,null,null,null,null,null,null,null,null,null,null,null,null,null,null,null,null,null,null,null,null,null,null,null,null,null,null,null,null,null,null,null,null,null,null,null,null,null,null,null,null,null,null,null,null,null,null,null,null,null,null,null,null,null,null,null,null,null,null,null,null,null,null,null,null,null,null,null,null,null,null,null,null,null,null,null,null,null,null,null,null,null,null,null,null,null,null,null,null,null,null,null,null,null,null,null,null,null,null,null,null,null,null,null,null,null,null,null,null,null,null,null,null,null,null,null,null,null,null,null,null,null,null,null,null,null,null,null,null,null,null,null,null,null,null,null,null,null,null,null,null,null,null,null,null,null,null,null,null,null,null,null,null,null,null,null,null,null,null,null,null,null,null,null,null,null,null,null,null,null,null,null,null,null,null,null,null,null,null,null,null,null,null,null,null,null,null,null,null,null,null,null,null,null,null,null,null,null,null,null,null,null,null,null,null,null,null,null,null,null,null,null,null,null,null,null,null,null,null,null,null,null,null,null,null,null,null,null,null,null,null,null,null,null,null,null,null,null,null,null,null,null,null,null,null,null,null,null,null,null,null,null,null,null,null,null,null,null,null,null,null,null,null,null,null,null,null,null,null,null,null,null,null,null,null,null,null,null,null,null,null,null,null,null,null,null,null,null,null,null,null,null,null,null,null,null,null,null,null,null,null,null,null,null,null,null,null,null,null,null,null,null,null,null,null,null,null,null,null,null,null,null,null,null,null,null,null,null,null,null,null,null,null,null,null,null,null,null,null,null,null,null,null,null,null,null,null,null,null,null,null,null,null,null,null,null,null,null,null,null,null,null,null,null,null,null,null,null,null,null,null,null,null,null,null,null,null,null,null,null,null,null,null,null,null,null,null,null,null,null,null,null,null,null,null,null,null,null,null,null,null,null,null,null,null,null,null,null,null,null,null,null,null,null,null,null,null,null,null,null,null,null,null,null,null,null,null,null,null,null,null,null,null,null,null,null,null,null,null,null,null,null,null,null,null,null,null,null,null,null,null,null,null,null,null,null,null,null,null,null,null,null,null,null,null,null,null,null,null,null,null,null,null,null,null,null,null,null,null,null,null,null,null,null,null,null,null,null,null,null,null,null,null,null,null,null,null,null,null,null,null,null,null,null,null,null,null,null,null,null,null,null,null,null,null,null,null,null,null,null,null,null,null,null,null,null,null,null,null,null,null,null,null,null,null,null,null,null,null,null,null,null,null,null,null,null,null,null,null,null,null,null,null,null,null,null,null,null,null,null,null,null,null,null,null,null,null,null,null,null,null,null,null,null,null,null,null,null,null,null,null,null,null,null,null,null,null,null,null,null,null,null,null,null,null,null,null,null,null,null,null,null,null,null,null,null,null,null,null,null,null,null,null,null,null,null,null,null,null,null,null,null,null,null,null,null,null,null,null,null,null,null,null,null,null,null,null,null,null,null,null,null,null,null,null,null,null,null,null,null,null,null,null,null,null,null,null,null,null,null,null,null,null,null,null,null,null,null,null,null,null,null,null,null,null,null,null,null,null,null,null,null,null,null,null,null,null,null,null,null,null,null,null,null,null,null,null,null,null,null,null,null,null,null,null,null,null,null,null,null,null,null,null,null,null,null,null,null,null,null,null,null,null,null,null,null,null,null,null,null,null,null,null,null,null,null,null,null,null,null,null,null,null,null,null,null,null,null,null,null,null,null,null,null,null,null,null,null,null,null,null,null,null,null,null,null,null,null,null,null,null,null,null,null,null,null,null,null,null,null,null,null,null,null,null,null,null,null,null,null,null,null,null,null,null,null,null,null,null,null,null,null,null,null,null,null,null,null,null,null,null,null,null,null,null,null,null,null,null,null,null,null,null,null,null,null,null,null,null,null,null,null,null,null,null,null,null,null,null,null,null,null,null,null,null,null,null,null,null,null,null,null,null,null,null,null,null,null,null,null,null,null,null,null,null,null,null,null,null,null,null,null,null,null,null,null,null,null,null,null,null,null,null,null,null,null,null,null,null,null,null,null,null,null,null,null,null,null,null,null,null,null,null,null,null,null,null,null,null,null,null,null,null,null,null,null,null,null,null,null,null,null,null,null,null,null,null,null,null,null,null,null,null,null,null,null,null,null,null,null,null,null,null,null,null,null,null,null,null,null,null,null,null,null,null,null,null,null,null,null,null,null,null,null,null,null,null,null,null,null,null,null,null,null,null,null,null,null,null,null,null,null,null,null,null,null,null,null,null,null,null,null,null,null,null,null,null,null,null,null,null,null,null,null,null,null,null,null,null,null,null,null,null,null,null,null,null,null,null,null,null,null,null,null,null,null,null,null,null,null,null,null,null,null,null,null,null,null,null,null,null,null,null,null,null,null,null,null,null,null,null,null,null,null,null,null,null,null,null,null,null,null,null,null,null,null,null,null,null,null,null,null,null,null,null,null,null,null,null,null,null,null,null,null,null,null,null,null,null,null,null,null,null,null,null,null,null,null,null,null,null,null,null,null,null,null,null,null,null,null,null,null,null,null,null,null,null,null,null,null,null,null,null,null,null,null,null,null,null,null,null,null,null,null,null,null,null,null,null,null,null,null,null,null,null,null,null,null,null,null,null,null,null,null,null,null,null,null,null,null,null,null,null,null,null,null,null,null,null,null,null,null,null,null,null,null,null,null,null,null,null,"PLAYER"]
[]
[]
[null,null,null,null,null,{"$f":"Variant!R2","v":"Vålerenga"},null,null,null,null,null,{"$f":"Variant!Y2","v":"Rosenborg"}]
[]
[]
[]
[]
[]
[null,"PARTY BET",null,null,null,1,"X",2,null,null,null,"BEST 10 BETTING"]
[null,null,null,null,null,{"$f":"Variant!Z40","v":0.4},{"$f":"Variant!Z41","v":0.25},{"$f":"Variant!Z42","v":0.35}]
[]
[]
[null,null,null,null,null,null,null,null,null,null,null,1,null,{"$f":"Variant!AC40","v":0.95},{"$f":"Variant!AE40","v":"0,5 OVER"}]
[null,"DOUBLE CHANCE",null,null,null,"1X",12,"X2",null,null,null,2,null,{"$f":"Variant!AC41","v":0.85000000000000009},{"$f":"Variant!AE41","v":"4,5 UNDER"}]
[null,null,null,null,null,{"$f":"Variant!Z57","v":0.32500000000000001},{"$f":"Variant!Z58","v":0.375},{"$f":"Variant!Z59","v":0.3},null,null,null,3,null,{"$f":"Variant!AC42","v":0.75},{"$f":"Variant!AE42","v":"1,5 OVER"}]
[null,null,null,null,null,null,null,null,null,null,null,4,null,{"$f":"Variant!AC43","v":0.65},{"$f":"Variant!AE43","v":"3,5 UNDER"}]
[null,null,null,null,null,null,null,null,null,null,null,5,null,{"$f":"Variant!AC44","v":0.6},{"$f":"Variant!AE44","v":"BTTS/YES (GG)"}]
[null,null,null,null,null,null,null,null,null,null,null,6,null,{"$f":"Variant!AC45","v":0.6},{"$f":"Variant!AE45","v":"2,5 OVER"}]
[null,"BTTS ( GG-NG )",null,null,null,"BTTS/YES (GG)",null,"BTTS/NO (NG)",null,null,null,7,null,{"$f":"Variant!AC46","v":0.4},{"$f":"Variant!AE46","v":"BTTS/NO (NG)"}]
[null,null,null,null,null,{"$f":"Variant!Z38","v":0.6},null,{"$f":"Variant!Z39","v":0.4},null,null,null,8,null,{"$f":"Variant!AC47","v":0.4},{"$f":"Variant!AE47","v":1}]
[null,null,null,null,null,null,null,null,null,null,null,9,null,{"$f":"Variant!AC48","v":0.4},{"$f":"Variant!AE48","v":"2-3"}]
[null,null,null,null,null,null,null,null,null,null,null,10,null,{"$f":"Variant!AC49","v":0.4},{"$f":"Variant!AE49","v":"2,5 UNDER"}]
[]
[null,"TOTAL GOAL",null,null,null,"0-1","2-3","4-6","7+"]
[null,null,null,null,null,{"$f":"Variant!Z43","v":0.25},{"$f":"Variant!Z44","v":0.4},{"$f":"Variant!Z45","v":0.25},{"$f":"Variant!Z46","v":0.1}]
[]
[]
[]
[null,"UNDER / OVER",null,null,null,"0,5 UNDER","0,5 OVER","1,5 UNDER","1,5 OVER","2,5 UNDER","2,5 OVER","3,5 UNDER","3,5 OVER","4,5 UNDER","4,5 OVER"]
[null,null,null,null,null,{"$f":"Variant!Z47","v":0.05},{"$f":"Variant!Z48","v":0.95},{"$f":"Variant!Z49","v":0.25},{"$f":"Variant!Z50","v":0.75},{"$f":"Variant!Z51","v":0.4},{"$f":"Variant!Z52","v":0.6},{"$f":"Variant!Z53","v":0.65},{"$f":"Variant!Z54","v":0.35},{"$f":"Variant!Z55","v":0.85000000000000009},{"$f":"Variant!Z56","v":0.15000000000000002}]
[]
[]
[]
[]
[null,null,null,null,null,null,null,null,null,null,null,null,null,"https://annabet.com/en/soccerstats/",null,null,null,null,null,"Designed by PLAYER"]
[]
[null,null,null,null,null,null,null,null,null,null,null,null,null,null,null,null,null,null,"MOSOFT - Professional Software Systems"]
[null,"The bet is never 100%."]
[null,null,null,null,null,null,null,null,null,null,null,null,null,null,null,null,null,null,"https://annabet.com/en/soccerstats/"]

{"sheet":"Variant","index":1,"n_rows":61,"n_cols":40,"rows_kept":61,"cut":false,"hidden":false,"merged":[[1,17,1,18],[1,24,1,25]]}
["Previous Games"]
["2021-05-02","Friendlies",null,"Vålerenga"," 3 - 4  ","Tromsø",null,"2021-05-02","Friendlies",null,"Ranheim"," 2 - 1  ","Rosenborg",null,null,null,{"$f":"COUNTIF(D2:D11,D2)","v":8},{"$f":"IF(MAX(Q2,T2)=Q2,D2,F2)","v":"Vålerenga"},null,{"$f":"COUNTIF(F2:F11,F2)","v":1},null,null,null,{"$f":"COUNTIF(K2:K11,K2)","v":1},{"$f":"IF(MAX(X2,AA2)=X2,K2,M2)","v":"Rosenborg"},null,{"$f":"COUNTIF(M2:M11,M2)","v":4}]
["2021-04-28","Friendlies",null,"Vålerenga"," 6 - 1  ","Raufoss",null,"2021-04-28","Friendlies",null,"Rosenborg"," 3 - 0  ","Kristiansund",null,null,null,{"$f":"IF(D2=R2,D2,\"\")","v":"Vålerenga"},{"$f":"IF(LEN(E2)=11,MID(E2,2,1),IF(LEN(E2)=12,MID(E2,2,2),IF(LEN(E2)=8,MID(E2,2,1),MID(E2,2,2))))","v":"3"},{"$f":"IF(LEN(E2)=11,MID(E2,6,1),IF(LEN(E2)=12,MID(E2,6,3),IF(LEN(E2)=8,MID(E2,6,1),MID(E2,6,3))))","v":"4"},{"$f":"IF(F2=R2,F2,\"\")","v":""},null,null,null,{"$f":"IF(K2=Y2,K2,\"\")","v":""},{"$f":"IF(LEN(L2)=11,MID(L2,2,1),IF(LEN(L2)=12,MID(L2,2,2),IF(LEN(L2)=8,MID(L2,2,1),MID(L2,2,2))))","v":"2"},{"$f":"IF(LEN(L2)=11,MID(L2,6,1),IF(LEN(L2)=12,MID(L2,6,3),IF(LEN(L2)=8,MID(L2,6,1),MID(L2,6,3))))","v":"1"},{"$f":"IF(M2=Y2,M2,\"\")","v":"Rosenborg"}]
["2021-04-25","Friendlies",null,"Vålerenga"," 3 - 1  ","FK Jerv",null,"2021-04-25","Friendlies",null,"Rosenborg"," 1 - 0  ","Tromsø",null,null,null,{"$f":"IF(D3=R2,D3,\"\")","v":"Vålerenga"},{"$f":"IF(LEN(E3)=11,MID(E3,2,1),IF(LEN(E3)=12,MID(E3,2,2),IF(LEN(E3)=8,MID(E3,2,1),MID(E3,2,2))))","v":"6"},{"$f":"IF(LEN(E3)=11,MID(E3,6,1),IF(LEN(E3)=12,MID(E3,6,3),IF(LEN(E3)=8,MID(E3,6,1),MID(E3,6,3))))","v":"1"},{"$f":"IF(F3=R2,F3,\"\")","v":""},null,null,null,{"$f":"IF(K3=Y2,K3,\"\")","v":"Rosenborg"},{"$f":"IF(LEN(L3)=11,MID(L3,2,1),IF(LEN(L3)=12,MID(L3,2,2),IF(LEN(L3)=8,MID(L3,2,1),MID(L3,2,2))))","v":"3"},{"$f":"IF(LEN(L3)=11,MID(L3,6,1),IF(LEN(L3)=12,MID(L3,6,3),IF(LEN(L3)=8,MID(L3,6,1),MID(L3,6,3))))","v":"0"},{"$f":"IF(M3=Y2,M3,\"\")","v":""}]
["2021-04-21","Friendlies",null,"Vålerenga"," 2 - 1  ","Sarpsborg 08",null,"2021-04-21","Friendlies",null,"Rosenborg"," 2 - 1  ","Ranheim",null,null,null,{"$f":"IF(D4=R2,D4,\"\")","v":"Vålerenga"},"3","1",{"$f":"IF(F4=R2,F4,\"\")","v":""},null,null,null,{"$f":"IF(K4=Y2,K4,\"\")","v":"Rosenborg"},"1","0",{"$f":"IF(M4=Y2,M4,\"\")","v":""}]
["2021-02-19","Friendlies",null,"Vålerenga"," 1 - 1  ","Strømsgodset",null,"2021-04-17","Friendlies",null,"Rosenborg"," 3 - 0  ","Raufoss",null,null,null,{"$f":"IF(D5=R2,D5,\"\")","v":"Vålerenga"},"2","1",{"$f":"IF(F5=R2,F5,\"\")","v":""},null,null,null,{"$f":"IF(K5=Y2,K5,\"\")","v":"Rosenborg"},"2","1",{"$f":"IF(M5=Y2,M5,\"\")","v":""}]
["2020-12-22","Eliteserien",null,"Vålerenga"," 4 - 0  ","Start Kristian",null,"2020-12-22","Eliteserien",null,"Sandefjord"," 0 - 0  ","Rosenborg",null,null,null,{"$f":"IF(D6=R2,D6,\"\")","v":"Vålerenga"},"1","1",{"$f":"IF(F6=R2,F6,\"\")","v":""},null,null,null,{"$f":"IF(K6=Y2,K6,\"\")","v":"Rosenborg"},"3","0",{"$f":"IF(M6=Y2,M6,\"\")","v":""}]
["2020-12-10","Eliteserien",null,"Viking"," 2 - 2  ","Vålerenga",null,"2020-12-13","Eliteserien",null,"Rosenborg"," 3 - 1  ","Molde FK",null,null,null,{"$f":"IF(D7=R2,D7,\"\")","v":"Vålerenga"},"4","0",{"$f":"IF(F7=R2,F7,\"\")","v":""},null,null,null,{"$f":"IF(K7=Y2,K7,\"\")","v":""},"0","0",{"$f":"IF(M7=Y2,M7,\"\")","v":"Rosenborg"}]
["2020-12-07","Eliteserien",null,"Vålerenga"," 1 - 0  ","Rosenborg",null,"2020-12-10","Eliteserien",null,"Rosenborg"," 1 - 0  ","Mjøndalen",null,null,null,{"$f":"IF(D8=R2,D8,\"\")","v":""},"2","2",{"$f":"IF(F8=R2,F8,\"\")","v":"Vålerenga"},null,null,null,{"$f":"IF(K8=Y2,K8,\"\")","v":"Rosenborg"},"3","1",{"$f":"IF(M8=Y2,M8,\"\")","v":""}]
["2020-12-02","Eliteserien",null,"Stabæk"," 1 - 1  ","Vålerenga",null,"2020-12-07","Eliteserien",null,"Vålerenga"," 1 - 0  ","Rosenborg",null,null,null,{"$f":"IF(D9=R2,D9,\"\")","v":"Vålerenga"},"1","0",{"$f":"IF(F9=R2,F9,\"\")","v":""},null,null,null,{"$f":"IF(K9=Y2,K9,\"\")","v":"Rosenborg"},"1","0",{"$f":"IF(M9=Y2,M9,\"\")","v":""}]
["2020-11-29","Eliteserien",null,"Vålerenga"," 1 - 1  ","Sarpsborg 08",null,"2020-11-29","Eliteserien",null,"Bodø/Glimt"," 5 - 1  ","Rosenborg",null,null,null,{"$f":"IF(D10=R2,D10,\"\")","v":""},"1","1",{"$f":"IF(F10=R2,F10,\"\")","v":"Vålerenga"},null,null,null,{"$f":"IF(K10=Y2,K10,\"\")","v":""},"1","0",{"$f":"IF(M10=Y2,M10,\"\")","v":"Rosenborg"}]
["1x2","5 4 1  24 - 12",null,null,null,null,null,"1x2","6 1 3  15 - 10",null,null,null,null,null,null,null,{"$f":"IF(D11=R2,D11,\"\")","v":"Vålerenga"},"1","1",{"$f":"IF(F11=R2,F11,\"\")","v":""},null,null,null,{"$f":"IF(K11=Y2,K11,\"\")","v":""},"5","1",{"$f":"IF(M11=Y2,M11,\"\")","v":"Rosenborg"}]
["%","50.0% - 40.0% - 10.0%",null,null,null,null,null,"%","60.0% - 10.0% - 30.0%"]
["% ⇒ Odds","2.00 - 2.50 - 10.00",null,null,null,null,null,"% ⇒ Odds","1.67 - 10.00 - 3.33",null,null,null,null,null,null,null,null,"ATTIĞI","YEDİĞİ",null,null,null,null,null,"ATTIĞI","YEDİĞİ"]
[12,"5 1  24 - 12",null,null,null,null,null,12,"6 3  15 - 10",null,null,null,null,null,null,null,null,{"$f":"IF(Q3=\"\",S3,R3)","v":"3"},{"$f":"IF(T3=\"\",S3,R3)","v":"4"},{"$f":"R15+S15","v":7},{"$f":"IF((R15-S15)>0,\"G\",IF((R15-S15)=0,\"B\",IF((R15-S15)<0,\"M\")))","v":"M"},null,null,null,{"$f":"IF(X3=\"\",Z3,Y3)","v":"1"},{"$f":"IF(AA3=\"\",Z3,Y3)","v":"2"},{"$f":"Y15+Z15","v":3},{"$f":"IF((Y15-Z15)>0,\"G\",IF((Y15-Z15)=0,\"B\",IF((Y15-Z15)<0,\"M\")))","v":"M"},null,{"$f":"R15+0","v":3},{"$f":"S15+0","v":4},null,{"$f":"Y15+0","v":1},{"$f":"Z15+0","v":2},{"$f":"IF(AND(AD15>=1,AE15>=1),\"1\",\"0\")","v":"1"},{"$f":"IF(AND(AG15>=1,AH15>=1),\"1\",\"0\")","v":"1"}]
["%","83.3% - 16.7%",null,null,null,null,null,"%","66.7% - 33.3%",null,null,null,null,null,null,null,null,{"$f":"IF(Q4=\"\",S4,R4)","v":"6"},{"$f":"IF(T4=\"\",S4,R4)","v":"1"},{"$f":"R16+S16","v":7},{"$f":"IF((R16-S16)>0,\"G\",IF((R16-S16)=0,\"B\",IF((R16-S16)<0,\"M\")))","v":"G"},{"$f":"COUNTIF(U15:U24,\"G\")","v":5},{"$f":"COUNTIF(U15:U24,\"B\")","v":4},{"$f":"COUNTIF(U15:U24,\"M\")","v":1},{"$f":"IF(X4=\"\",Z4,Y4)","v":"3"},{"$f":"IF(AA4=\"\",Z4,Y4)","v":"0"},{"$f":"Y16+Z16","v":3},{"$f":"IF((Y16-Z16)>0,\"G\",IF((Y16-Z16)=0,\"B\",IF((Y16-Z16)<0,\"M\")))","v":"G"},null,{"$f":"R16+0","v":6},1,null,{"$f":"Y16+0","v":3},{"$f":"Z16+0","v":0},{"$f":"IF(AND(AD16>=1,AE16>=1),\"1\",\"0\")","v":"1"},{"$f":"IF(AND(AG16>=1,AH16>=1),\"1\",\"0\")","v":"0"}]
["% ⇒ Odds","1.20 - 5.99",null,null,null,null,null,"% ⇒ Odds","1.50 - 3.00",null,null,null,null,null,null,null,null,"3","1",4,"G",{"$f":"COUNTIF(AB15:AB24,\"G\")","v":6},{"$f":"COUNTIF(AB15:AB24,\"B\")","v":1},{"$f":"COUNTIF(AB15:AB24,\"M\")","v":3},"1","0",1,"G",null,3,1,null,1,0,"1","0"]
[null,"Total Goals Under - Over 2.5 : 40% - 60%",null,null,null,null,null,null,"Total Goals Under - Over 2.5 : 40% - 60%",null,null,null,null,null,null,null,null,"2","1",3,"G",null,null,null,"2","1",3,"G",null,2,1,null,2,1,"1","1"]
["Goals For",null,null,"Goals Against",null,null,null,"Goals For",null,null,"Goals Against",null,null,null,null,null,null,"1","1",2,"B",null,null,null,"3","0",3,"G",null,1,1,null,3,0,"1","0"]
[0,null,"0  ",null,0.2,null,null,0.2,null,"0  ",null,0.5,null,null,null,null,null,"4","0",4,"G",null,null,null,"0","0",0,"B",null,4,0,null,0,0,"0","0"]
[0.4,null,"1  ",null,0.6,null,null,0.4,null,"1  ",null,0.3,null,null,null,null,null,"2","2",4,"B",null,null,null,"3","1",4,"G",null,2,2,null,3,1,"1","1"]
[0.2,null,"2  ",null,0.1,null,null,0.1,null,"2  ",null,0.1,null,null,null,null,null,"1","0",1,"G",null,null,null,"1","0",1,"G",null,1,0,null,1,0,"0","0"]
[0.2,null,"3  ",null,0,null,null,0.3,null,"3  ",null,0,null,null,null,null,null,"1","1",2,"B",null,null,null,"0","1",1,"M",null,1,1,null,0,1,"1","0"]
[0.1,null,"4  ",null,0.1,null,null,0,null,"4  ",null,0,null,null,null,null,null,"1","1",2,"B",null,null,null,"1","5",6,"M",null,1,1,null,1,5,"1","1"]
[0,null,"5  ",null,0,null,null,0,null,"5  ",null,0.1]
[0.1,null,"6+",null,0,null,null,0,null,"6+",null,0,null,null,null,null,null,{"$f":"(R15+R16+R17+R18+R19+R20+R21+R22+R23+R24)/10","v":2.4},{"$f":"(S15+S16+S17+S18+S19+S20+S21+S22+S23+S24)/10","v":1.2},null,null,null,null,null,{"$f":"(Y15+Y16+Y17+Y18+Y19+Y20+Y21+Y22+Y23+Y24)/10","v":1.5},{"$f":"(Z15+Z16+Z17+Z18+Z19+Z20+Z21+Z22+Z23+Z24)/10","v":1}]
[]
["Both Teams To Score: 80%",null,null,null,null,null,null,"Both Teams To Score: 40%",null,null,null,null,null,null,null,null,"KG VAR","KG YOK",null,"G","B","M",null,"0-1","2-3","4-6","7+",null,{"$f":"IF(AND(T15>=2,T15<=3),1,0)","v":0},{"$f":"IF(AND(AA15>=2,AA15<=3),1,0)","v":1},null,{"$f":"IF(AND(T15>=4,T15<=6),1,0)","v":0},{"$f":"IF(AND(AA15>=4,AA15<=6),1,0)","v":0},null,{"$f":"IF(T15>=7,1,0)","v":1},{"$f":"IF(AA15>=7,1,0)","v":0}]
["Goal difference",null,null,null,null,null,null,"Goal difference",null,null,null,null,null,null,null,null,{"$f":"AVERAGE(COUNTIF(AI15:AI24,\"1\"),COUNTIF(AJ15:AJ24,\"1\"))/10","v":0.6},{"$f":"AVERAGE(COUNTIF(AI15:AI24,\"0\"),COUNTIF(AJ15:AJ24,\"0\"))/10","v":0.4},null,{"$f":"AVERAGE(V16,X17)/10","v":0.4},{"$f":"AVERAGE(W16,W17)/10","v":0.25},{"$f":"AVERAGE(X16,V17)/10","v":0.35},null,{"$f":"AVERAGE(COUNTIF(T15:T24,\"<=1\"),COUNTIF(AA15:AA24,\"<=1\"))/10","v":0.25},{"$f":"AVERAGE(COUNTIF(AC28:AC37,\"1\"),COUNTIF(AD28:AD37,\"1\"))/10","v":0.4},{"$f":"AVERAGE(COUNTIF(AF28:AF37,\"1\"),COUNTIF(AG28:AG37,\"1\"))/10","v":0.25},{"$f":"AVERAGE(COUNTIF(AI28:AI37,\"1\"),COUNTIF(AJ28:AJ37,\"1\"))/10","v":0.1},null,{"$f":"IF(AND(T16>=2,T16<=3),1,0)","v":0},1,null,{"$f":"IF(AND(T16>=4,T16<=6),1,0)","v":0},0,null,{"$f":"IF(T16>=7,1,0)","v":1},0]
[2,null,null,null,0.1,null,null,2,null,null,null,0.1,null,null,null,null,null,null,null,null,null,null,null,null,null,null,null,null,0,0,null,1,0,null,0,0]
[1,null,null,null,0.2,null,null,1,null,null,null,0.3,null,null,null,null,null,null,null,null,null,null,null,null,10,12,"O2",null,1,1,null,0,0,null,0,0]
["  0",null,null,null,0.4,null,null,"  0",null,null,null,0.1,null,null,null,null,"0,5 ALT",{"$f":"COUNTIF(T15:T24,\"<1\")/10","v":0},"0,5 ALT",{"$f":"COUNTIF(AA15:AA24,\"<1\")/10","v":0.1},null,"0,5 ALT",{"$f":"AVERAGE(R32,T32)","v":0.05},null,{"$f":"AVERAGE((V16+W16),(W17+X17))/20","v":0.32500000000000001},{"$f":"AVERAGE((V16+X17),(V17+X16))/20","v":0.375},{"$f":"AVERAGE((X16+W16),(W17+V17))/20","v":0.3},null,1,1,null,0,0,null,0,0]
[-1,null,null,null,0.1,null,null,-1,null,null,null,0.2,null,null,null,null,"0,5 ÜST",{"$f":"COUNTIF(T15:T24,\">=1\")/10","v":1},"0,5 ÜST",{"$f":"COUNTIF(AA15:AA24,\">=1\")/10","v":0.9},null,"0,5 ÜST",{"$f":"AVERAGE(R33,T33)","v":0.95},null,null,null,null,null,0,0,null,1,0,null,0,0]
[-2,null,null,null,0,null,null,-2,null,null,null,0,null,null,null,null,"1,5 ALT",{"$f":"COUNTIF(T15:T24,\"<2\")/10","v":0.1},"1,5 ALT",{"$f":"COUNTIF(AA15:AA24,\"<2\")/10","v":0.4},null,"1,5 ALT",0.25,null,null,null,null,null,0,0,null,1,1,null,0,0]
["Regulation Time",null,null,null,null,null,null,"Regulation Time",null,null,null,null,null,null,null,null,"1,5 ÜST",{"$f":"COUNTIF(T15:T24,\">=2\")/10","v":0.9},"1,5 ÜST",{"$f":"COUNTIF(AA15:AA24,\">=2\")/10","v":0.6},null,"1,5 ÜST",0.75,null,null,null,null,null,0,0,null,0,0,null,0,0]
["Goal Average 2.40 - 1.20 (3.60)",null,null,null,null,null,null,"Goal Average 1.50 - 1.00 (2.50)",null,null,null,null,null,null,null,null,"2,5 ALT",{"$f":"COUNTIF(T15:T24,\"<3\")/10","v":0.4},"2,5 ALT",{"$f":"COUNTIF(AA15:AA24,\"<3\")/10","v":0.4},null,"2,5 ALT",0.4,null,null,null,null,null,1,0,null,0,0,null,0,0]
[null,null,null,null,null,null,null,null,null,null,null,null,null,null,null,null,"2,5 ÜST",{"$f":"COUNTIF(T15:T24,\">=3\")/10","v":0.6},"2,5 ÜST",{"$f":"COUNTIF(AA15:AA24,\">=3\")/10","v":0.6},null,"2,5 ÜST",0.6,null,null,null,null,null,1,0,null,0,1,null,0,0]
[null,null,null,null,null,null,null,null,null,null,null,null,null,null,null,null,"3,5 ALT",{"$f":"COUNTIF(T15:T24,\"<4\")/10","v":0.5},"3,5 ALT",{"$f":"COUNTIF(AA15:AA24,\"<4\")/10","v":0.8},null,"3,5 ALT",0.65,{"$f":"RANK(Z38,$Z$38:$Z$59,0)+COUNTIF($Z$38:Z38,Z38)-1","v":5},"BTTS/YES (GG)",{"$f":"Q29","v":0.6}]
[null,null,null,null,null,null,null,null,null,null,null,null,null,null,null,null,"3,5 ÜST",{"$f":"COUNTIF(T15:T24,\">=4\")/10","v":0.5},"3,5 ÜST",{"$f":"COUNTIF(AA15:AA24,\">=4\")/10","v":0.2},null,"3,5 ÜST",0.35,{"$f":"RANK(Z39,$Z$38:$Z$59,0)+COUNTIF($Z$38:Z39,Z39)-1","v":7},"BTTS/NO (NG)",{"$f":"R29","v":0.4}]
[null,null,null,null,null,null,null,null,null,null,null,null,null,null,null,null,"4,5 ALT",{"$f":"COUNTIF(T15:T24,\"<5\")/10","v":0.8},"4,5 ALT",{"$f":"COUNTIF(AA15:AA24,\"<5\")/10","v":0.9},null,"4,5 ALT",0.85000000000000009,{"$f":"RANK(Z40,$Z$38:$Z$59,0)+COUNTIF($Z$38:Z40,Z40)-1","v":8},1,{"$f":"T29","v":0.4},null,null,{"$f":"MAX(Z38:Z59)","v":0.95},{"$f":"COUNTIF(Z38:Z59,AC40)","v":1},{"$f":"VLOOKUP(AF40,$X$38:$Z$59,2,0)","v":"0,5 OVER"},1,null,{"$f":"VLOOKUP(AF40,$Z$38:$AA$59,2)","v":0},null,null,null,null,null,{"$f":"COUNTIF(Z38:Z59,Z38)&Z38","v":"20,6"}]
[null,null,null,null,null,null,null,null,null,null,null,null,null,null,null,null,"4,5 ÜST",{"$f":"COUNTIF(T15:T24,\">=5\")/10","v":0.2},"4,5 ÜST",{"$f":"COUNTIF(AA15:AA24,\">=5\")/10","v":0.1},null,"4,5 ÜST",0.15000000000000002,{"$f":"RANK(Z41,$Z$38:$Z$59,0)+COUNTIF($Z$38:Z41,Z41)-1","v":16},"X",{"$f":"U29","v":0.25},null,null,{"$f":"LARGE(Z38:Z59,2)","v":0.85000000000000009},{"$f":"COUNTIF(Z38:Z59,AC41)","v":1},{"$f":"VLOOKUP(AF41,$X$38:$Z$59,2,0)","v":"4,5 UNDER"},2,null,{"$f":"VLOOKUP(AF41,$Z$38:$AA$59,2)","v":0},null,null,null,null,null,"40,4"]
[null,null,null,null,null,null,null,null,null,null,null,null,null,null,null,null,"5,5 ALT",{"$f":"COUNTIF(T15:T24,\"<6\")/10","v":0.8},"5,5 ALT",{"$f":"COUNTIF(AA15:AA24,\"<6\")/10","v":0.9},null,"5,5 ALT",0.85000000000000009,{"$f":"RANK(Z42,$Z$38:$Z$59,0)+COUNTIF($Z$38:Z42,Z42)-1","v":12},2,{"$f":"V29","v":0.35},null,null,{"$f":"LARGE(Z38:Z59,3)","v":0.75},{"$f":"COUNTIF(Z38:Z59,AC42)","v":1},"1,5 OVER",3,null,0,null,null,null,null,null,"30,4"]
[null,null,null,null,null,null,null,null,null,null,null,null,null,null,null,null,"5,5 ÜST",{"$f":"COUNTIF(T15:T24,\">=6\")/10","v":0.2},"5,5 ÜST",{"$f":"COUNTIF(AA15:AA24,\">=6\")/10","v":0.1},null,"5,5 ÜST",0.15000000000000002,{"$f":"RANK(Z43,$Z$38:$Z$59,0)+COUNTIF($Z$38:Z43,Z43)-1","v":17},"0-1",{"$f":"X29","v":0.25},null,null,{"$f":"LARGE(Z38:Z59,4)","v":0.65},{"$f":"COUNTIF(Z38:Z59,AC43)","v":1},"3,5 UNDER",4,null,0,null,null,null,null,null,"40,25"]
[null,null,null,null,null,null,null,null,null,null,null,null,null,null,null,null,"6,5 ALT",{"$f":"COUNTIF(T15:T24,\"<7\")/10","v":0.8},"6,5 ALT",{"$f":"COUNTIF(AA15:AA24,\"<7\")/10","v":1},null,"6,5 ALT",0.9,{"$f":"RANK(Z44,$Z$38:$Z$59,0)+COUNTIF($Z$38:Z44,Z44)-1","v":9},"2-3",{"$f":"Y29","v":0.4},null,null,{"$f":"LARGE(Z38:Z59,5)","v":0.6},{"$f":"COUNTIF(Z38:Z59,AC44)","v":2},{"$f":"VLOOKUP(AF44,$X$38:$Z$59,2,0)","v":"BTTS/YES (GG)"},5,null,0,null,null,null,null,null,"20,35"]
[null,null,null,null,null,null,null,null,null,null,null,null,null,null,null,null,"6,5 ÜST",{"$f":"COUNTIF(T15:T24,\">=7\")/10","v":0.2},"6,5 ÜST",{"$f":"COUNTIF(AA15:AA24,\">=7\")/10","v":0},null,"6,5 ÜST",0.1,{"$f":"RANK(Z45,$Z$38:$Z$59,0)+COUNTIF($Z$38:Z45,Z45)-1","v":18},"4-6",{"$f":"Z29","v":0.25},null,null,{"$f":"LARGE(Z38:Z59,6)","v":0.6},{"$f":"COUNTIF(Z38:Z59,AC45)","v":2},"2,5 OVER",6,null,0,null,null,null,null,null,"30,25"]
[null,null,null,null,null,null,null,null,null,null,null,null,null,null,null,null,"7,5 ALT",{"$f":"COUNTIF(T15:T24,\"<8\")/10","v":1},"7,5 ALT",{"$f":"COUNTIF(AA15:AA24,\"<8\")/10","v":1},null,"7,5 ALT",1,{"$f":"RANK(Z46,$Z$38:$Z$59,0)+COUNTIF($Z$38:Z46,Z46)-1","v":21},"7+",{"$f":"AA29","v":0.1},null,null,{"$f":"LARGE(Z38:Z59,7)","v":0.4},{"$f":"COUNTIF(Z38:Z59,AC46)","v":4},"BTTS/NO (NG)",7,null,0,null,null,null,null,null,"20,4"]
[null,null,null,null,null,null,null,null,null,null,null,null,null,null,null,null,"7,5 ÜST",{"$f":"COUNTIF(T15:T24,\">=8\")/10","v":0},"7,5 ÜST",{"$f":"COUNTIF(AA15:AA24,\">=8\")/10","v":0},null,"7,5 ÜST",0,{"$f":"RANK(Z47,$Z$38:$Z$59,0)+COUNTIF($Z$38:Z47,Z47)-1","v":22},"0,5 UNDER",{"$f":"W32","v":0.05},null,null,{"$f":"LARGE(Z38:Z59,8)","v":0.4},{"$f":"COUNTIF(Z38:Z59,AC47)","v":4},1,8,null,0,null,null,null,null,null,"20,25"]
[null,null,null,null,null,null,null,null,null,null,null,null,null,null,null,null,null,null,null,null,null,null,null,{"$f":"RANK(Z48,$Z$38:$Z$59,0)+COUNTIF($Z$38:Z48,Z48)-1","v":1},"0,5 OVER",{"$f":"W33","v":0.95},null,null,{"$f":"LARGE(Z38:Z59,9)","v":0.4},{"$f":"COUNTIF(Z38:Z59,AC48)","v":4},"2-3",9,null,0,null,null,null,null,null,"10,1"]
[null,null,null,null,null,null,null,null,null,null,null,null,null,null,null,null,null,null,null,null,null,null,null,{"$f":"RANK(Z49,$Z$38:$Z$59,0)+COUNTIF($Z$38:Z49,Z49)-1","v":19},"1,5 UNDER",0.25,null,null,{"$f":"LARGE(Z38:Z59,10)","v":0.4},{"$f":"COUNTIF(Z38:Z59,AC49)","v":4},"2,5 UNDER",10,null,0,null,null,null,null,null,"10,05"]
[null,null,null,null,null,null,null,null,null,null,null,null,null,null,null,null,null,null,null,null,null,null,null,{"$f":"RANK(Z50,$Z$38:$Z$59,0)+COUNTIF($Z$38:Z50,Z50)-1","v":3},"1,5 OVER",0.75,null,null,null,null,null,null,null,null,null,null,null,null,null,"10,95"]
[null,null,null,null,null,null,null,null,null,null,null,null,null,null,null,null,null,null,null,null,null,null,null,{"$f":"RANK(Z51,$Z$38:$Z$59,0)+COUNTIF($Z$38:Z51,Z51)-1","v":10},"2,5 UNDER",0.4,null,null,null,null,null,null,null,null,null,null,null,null,null,"10,25"]
[null,null,null,null,null,null,null,null,null,null,null,null,null,null,null,null,null,null,null,null,null,null,null,{"$f":"RANK(Z52,$Z$38:$Z$59,0)+COUNTIF($Z$38:Z52,Z52)-1","v":6},"2,5 OVER",0.6,null,null,null,null,null,null,null,null,null,null,null,null,null,"10,75"]
[null,null,null,null,null,null,null,null,null,null,null,null,null,null,null,null,null,null,null,null,null,null,null,{"$f":"RANK(Z53,$Z$38:$Z$59,0)+COUNTIF($Z$38:Z53,Z53)-1","v":4},"3,5 UNDER",0.65,null,null,null,null,null,null,null,null,null,null,null,null,null,"10,4"]
[null,null,null,null,null,null,null,null,null,null,null,null,null,null,null,null,null,null,null,null,null,null,null,{"$f":"RANK(Z54,$Z$38:$Z$59,0)+COUNTIF($Z$38:Z54,Z54)-1","v":13},"3,5 OVER",0.35,null,null,null,null,null,null,null,null,null,null,null,null,null,"10,6"]
[null,null,null,null,null,null,null,null,null,null,null,null,null,null,null,null,null,null,null,null,null,null,null,{"$f":"RANK(Z55,$Z$38:$Z$59,0)+COUNTIF($Z$38:Z55,Z55)-1","v":2},"4,5 UNDER",0.85000000000000009,null,null,null,null,null,null,null,null,null,null,null,null,null,"10,65"]
[null,null,null,null,null,null,null,null,null,null,null,null,null,null,null,null,null,null,null,null,null,null,null,{"$f":"RANK(Z56,$Z$38:$Z$59,0)+COUNTIF($Z$38:Z56,Z56)-1","v":20},"4,5 OVER",{"$f":"W41","v":0.15000000000000002},null,null,null,null,null,null,null,null,null,null,null,null,null,"10,35"]
[null,null,null,null,null,null,null,null,null,null,null,null,null,null,null,null,null,null,null,null,null,null,null,{"$f":"RANK(Z57,$Z$38:$Z$59,0)+COUNTIF($Z$38:Z57,Z57)-1","v":14},"1X",{"$f":"Y32","v":0.32500000000000001},null,null,null,null,null,null,null,null,null,null,null,null,null,"10,85"]
[null,null,null,null,null,null,null,null,null,null,null,null,null,null,null,null,null,null,null,null,null,null,null,{"$f":"RANK(Z58,$Z$38:$Z$59,0)+COUNTIF($Z$38:Z58,Z58)-1","v":11},12,{"$f":"Z32","v":0.375},null,null,null,null,null,null,null,null,null,null,null,null,null,"10,15"]
[null,null,null,null,null,null,null,null,null,null,null,null,null,null,null,null,null,null,null,null,null,null,null,{"$f":"RANK(Z59,$Z$38:$Z$59,0)+COUNTIF($Z$38:Z59,Z59)-1","v":15},"X2",{"$f":"AA32","v":0.3},null,null,null,null,null,null,null,null,null,null,null,null,null,"10,325"]
[null,null,null,null,null,null,null,null,null,null,null,null,null,null,null,null,null,null,null,null,null,null,null,null,null,null,null,null,null,null,null,null,null,null,null,null,null,null,null,"10,375"]
[null,null,null,null,null,null,null,null,null,null,null,null,null,null,null,null,null,null,null,null,null,null,null,null,null,null,null,null,null,null,null,null,null,null,null,null,null,null,null,"10,3"]